Workbook

Sheet シート構成
B1: シートの構成
B2: 入力の有無 | C2: シート名
B3: 入力必要 | C3: ☆ | D3: シート概要： | E3: ⇒改良体が負担する盛土面積Vsoilと原地盤が負担するAsoilを算出する。(旧verの計算式も対応）
D4: 参照シート： | E4: 画像、単軸三角形配置、単軸四角形配置、二軸四角形配置、二軸千鳥配置
B6: 入力不要 | C6: 単軸三角形配置 | D6: シート概要： | E6: ⇒三角形配置の影響円と基本配置の関係を算出。計算結果を☆【体積計算シート】に反映させている。面積の計算根拠模式図有
C7: 単軸四角形配置 | E7: ※このシートに入力する必要はありません。
C8: 二軸四角形配置 | E8: ※これらのシート名を変更、削除、シートの構成を変更すると体積の算出が出来なくなる。
C9: 二軸千鳥配置
D10: 参照シート： | E10: ☆⇒配置条件、盛土高さ、塑性角θの条件 を参照している。
C11: 画像 | D11: シート概要： | E11: ⇒配置を選んだ時の画像を反映させる。
D12: 参照シート： | E12: ☆、計算シート
B14: 入力手順 | C14: シート名 | D14: 入力
B15: 手順① | C15: ☆ | D15: 計算条件入力（配置、盛土高さ、塑性角条件
B16: 手順② | C16: ☆ | D16: 体積計算マクロの実行
B18: その他
B19: 入力セル | C19: ⇩基本的に青字の黄色でハッチングしてある箇所が入力項目。
C20: 2.3
B22: ※新特許は、改良体に生じる体積の計算方法のみ
B23: 計算方法は従来と同様。体積の計算のみ行い従来のシートに貼り付けでOK

Sheet sheet説明⇒【☆】Vsoil算出計算
A1: 盛土体積 計算条件
B2: 項 目 | E2: 記号 | F2: 値 | G2: 単位 | H2: 備考 | N2: 旧計算Vsoil
C3: 改良体配置 | F3: 単軸四角形配置 | H3: 飛び出ないようにダミー入力 | M3: 単軸三角形配置 | N3: 8.64536807 | Q3: Ｖsoil算出のための判定式及び適用式（単軸四角形配置） | AE3: 二軸四角形配置 | AJ3: 仕様の確認用グラフ
B4: セメント コラム 改良体 | C4: 改良体直径 | E4: ｄ | F4: 1 | G4: m | M4: 単軸四角形配置 | N4: 13.70260035 | R4: 盛土高さ | T4: 改良体間荷重算定モデルと盛土高さとの関係 | Z4: 判定式 | AB4: 適用式 | AC4: Ｖsoil | AD4: 計算結果 | AE4: 適用式 | AF4: Ｖsoil | AG4: 計算結果 | AH4: 計算結果 | AJ4: 標準的な仕様範囲 | AM4: 試験施工などで検討可能な範囲
C5: 改良体間隔 (改良体中心間隔) | E5: a | F5: 2 | G5: 〃 | M5: 二軸四角配置 | N5: 16.56011342 | Q5: 1 | R5: Ｈe1以上 | T5: 改良体間荷重算定モデル土塊が全て盛土内 | Z5: Ｈe1≦Ｈe | AB5: 5.8 | AC5: {(λ－ｄ)／2×λ^2－π×(λ^3－ｄ^3)／24＋(4－π)×(√2－1)／24×λ^3}×tanθ | AD5: 13.74147708 | AE5: p17 2007マニュアル | AF5: 1/2(λ-d)・(λ-d)/2・tanθ・d/2・2＝ | AG5: 2.857513076 | AH5: 16.59899015 | AJ5: d | AK5: λ | AL5: ap | AM5: d | AN5: λ | AO5: ap
E6: b | F6: 2 | G6: 〃 | M6: 二軸千鳥配置 | N6: ※未対応 | Q6: 2 | R6: Ｈe2～Ｈe1 | T6: 改良体間荷重算定モデル土塊の上部が盛土上面にある | Z6: Ｈe2＜Ｈe＜Ｈe1 | AB6: 5.9 | AC6: [(λ－ｄ)／2×λ^2－π×(λ^3－ｄ^3)／24＋【1-［{(0.5^2-d)tanθ-2Ｈe}／{(√2-1)×λ×tanθ}］^3】×(4－π)×(√2－1)／24×λ^3]×tanθ | AD6: 13.70260035 | AG6: 2.857513076 | AH6: 16.56011342 | AJ6: 0.6 | AK6: 1 | AL6: 28.27433388 | AM6: 0.6 | AN6: 1 | AO6: 28.27433388
G7: 〃 | M7: 計算に反映⇨ | N7: =IF(F3=M6,N6,(LOOKUP(F3,M3:M5,N3:N5))) -> 13.70260035 | Q7: 3 | R7: Ｈe2以下 | Z7: Ｈe≦Ｈe2 | AB7: 5.10 | AC7: λ^2×Ｈe－1／3×{π×(Ｈe／tanθ＋ｄ／2)^2×(ｄ／2tanθ×Ｈe)－π×(ｄ／2)^3×tanθ} | AD7: 11.95651941 | AG7: 2.857513076 | AH7: 14.81403248 | AJ7: 1 | AK7: 1 | AL7: 78.53981634 | AM7: 1 | AN7: 1 | AO7: 78.53981634
F8: 3 | G8: 〃 | N8: 1.135243716 | AJ8: 1.3 | AK8: 1.3 | AL8: 78.53981634 | AM8: 1.3 | AN8: 1.3 | AO8: 78.53981634
C9: 改良体間隔(大) | E9: λ | F9: 2 | G9: 〃 | R9: Ｈe： | S9: 盛土高さ | V9: Ｈe＝ | W9: 9 | X9: m | Y9: 判定： | Z9: 2 | AJ9: 1.3 | AK9: 2.5 | AL9: 21.23716634 | AM9: 1.8 | AN9: 1.8 | AO9: 78.53981634
C10: 改良体間隔(小) | E10: x | F10: 2 | G10: 〃 | L10: 盛土高 | R10: Ｈe1： | S10: {(√2・λ－ｄ)tanθ}／2 | V10: Ｈe1＝ | W10: 10.44950883 | X10: m | AJ10: 0.8920620581 | AK10: 2.5 | AL10: 10 | AM10: 1.8 | AN10: 3.25 | AO10: 24.09174011
C11: 改良率 | E11: ａp | F11: 0.1963495408 | G11: - | L11: 計画高 | M11: 原地盤高 | N11: 盛土高 | O11: F8 | R11: Ｈe2： | S11: {(λ－ｄ)tanθ}／2 | V11: Ｈe2＝ | W11: 5.715026151 | X11: m | AJ11: 0.6 | AK11: 1.681497365 | AL11: 10 | AM11: 0.9869286964 | AN11: 3 | AO11: 8.5
L12: 9 | M12: 0 | N12: 9 | AJ12: 0.6 | AK12: 1 | AL12: 28.27433388 | AM12: 0.6 | AN12: 1.823839966 | AO12: 8.5
B13: 盛土条件 | C13: 盛土高さ | E13: Ｈe | F13: =+N12 -> 9 | G13: m | H13: =+IF(AND(L12="",M12=""),"","ＦH＝"&FIXED(L12,2)&"m，ＧL＝"&FIXED(M12,2)&"m") -> ＦH＝9.00m，ＧL＝0.00m | Q13: Ｖsoil算出のための判定式及び適用式（単軸三角形配置） | AM13: =+AM6 -> 0.6 | AN13: =+AN6 -> 1 | AO13: =+AO6 -> 28.27433388
C14: 盛土の内部摩擦角 | E14: φ | F14: 30 | G14: 度 | L14: 塑性角 | M14: =+D15 -> 浮き型 | R14: d | S14: =F4 -> 1 | T14: D1 | U14: =1/2*SQRT(S20^2+S15^2/4) -> 0.4892332032 | V14: V1 | W14: =0.5*S15*S20*U18 -> 0.2102671676 | AJ14: =+AJ15 -> 1 | AK14: =+AK33 -> 0
B15: 塑性角 | C15: 改良形式： | D15: 浮き型 | E15: θ | F15: 85 | G15: 度 | L15: ジオテキ | M15: 浅層改良 | N15: なし | O15: 塑性角予備 | R15: d | S15: 1 | T15: D1 | U15: 1.224744871 | V15: V1 | W15: 19.16878045 | AJ15: 1 | AK15: 0
C16: 補助工法： | D16: 浅層改良 | L16: 75 | M16: 85 | N16: 80 | O16: 85 | R16: λ | S16: 2 | T16: D2 | U16: 0.7247448714 | V16: V2 | W16: 2.816443036 | AJ16: 1 | AK16: 2
R17: a | S17: 2 | T17: D3 | U17: 1 | V17: V3 | W17: 3.851822673 | AJ17: 0 | AK17: 2
B18: 影響円D | C18: 影響円直径D | D18: その時の高さ | E18: 影響円Dの範囲条件 | I18: 概要 | R18: α | S18: 1.150261992 | T18: D4 | U18: 0.5 | V18: V4 | W18: -0.4031306613
B19: d | C19: 1 | D19: 0 | E19: STEP-0：底面積（d=D） | I19: 底面積A0 | L19: B17 | M19: C17 | N19: D17 | O19: U5 | R19: β | S19: 0.7297276562 | T19: h1 | U19: 8.572539227 | V19: V5 | W19: 0.1999033312
B20: b | C20: 2 | D20: 5.715026151 | E20: STEP-1：影響円D範囲(d≦D<b） | I20: 底面積A1 | L20: B18 | M20: C18 | N20: D18 | O20: U6 | R20: γ | S20: 0.8410686706 | T20: h2 | U20: 2.568845635 | V20: Vsoil | W20: 8.64536807
B21: a | C21: 2.0001 | D21: 5.715597654 | E21: STEP-2：影響円D範囲(b≦D<a） | I21: 底面積A2 | L21: B19 | M21: C19 | N21: D19 | O21: U7 | R21: μ | S21: 2.236067977 | T21: h3 | U21: 5.715026151
B22: √(a2+b2） | C22: 2.828427125 | D22: 10.44950883 | E22: STEP-3：影響円D範囲(a≦D<√(a^2+b^2）） | I22: 底面積A3 | L22: B20 | M22: C20 | N22: D20 | O22: U8 | R22: s | S22: 3.236067977 | T22: h4 | U22: 6.003693592
B23: --- | C23: --- | D23: end | E23: 計算範囲外 | L23: B21 | M23: C21 | N23: D21 | O23: U9 | R23: 4√｛(s(s-λ)(s-μ)(ｓ-c)｝ | S23: 8 | T23: h5 | U23: 2.857513076
A24: 体積の算出 | R24: 外接円R | S24: 1.25 | T24: h6 | U24: 5.715026151
B25: 配置型式 | C25: 単軸四角形配置
B26: スタート | C26: 0 | D26: m | F26: step数 | G26: STEP-3：影響円D範囲(a≦D<√(a^2+b^2）） | L26: AB23
B27: エンド | C27: 9 | D27: m | F27: 高さH | I27: 9 | J27: m
B28: キザミ | C28: 0.25 | D28: m | E28: 20 | F28: 面積 | I28: 0.06661849831 | J28: m2 | L28: AA23
B29: 回数 | C29: 38 | D29: 回 | F29: 体積 | I29: 13.58989867 | J29: m3
B30: 参考キザミ幅 | C30: 0.3 | D30: m
A32: 盛土計算各step上限地盤高さ | L32: D17
B33: step0 | C33: 0 | L33: D18
B34: step1 | C34: 5.715026151 | L34: D19
B35: step2 | C35: 5.715597654 | L35: D20
B36: step3 | C36: 10.44950883 | L36: D21
B37: step4 | C37: end
C38: end
B43: 出力列№(step数） | D43: 2
B44: 出力列№ (横軸） | D44: 6
B45: 出力列№ (縦軸） | D45: 7 | F45: （参考）旧計算Vsoil= | G45: 13.70(㎥) | I45: ∴新計算体積Vsoil= | J45: 13.59(㎥)
H46: Asoil= | I46: =N8 -> 1.135243716 | J46: m2
I47: 13.58989867 | O47: 7.702143961 | S47: 0 | W47: 0 | AA47: 0 | AE47: 0
B48: 表示列№ | F48: 6 | G48: 7 | H48: 8 | I48: 9 | L48: =I48+3 -> 12 | M48: =L48+1 -> 13 | N48: 14 | O48: 15 | P48: 16 | Q48: =N48+3 -> 17 | R48: =Q48+1 -> 18 | S48: 19 | T48: 20 | U48: 21 | V48: =S48+3 -> 22 | W48: =V48+1 -> 23 | X48: 24 | Y48: 25 | Z48: 26 | AA48: =X48+3 -> 27 | AB48: =AA48+1 -> 28 | AC48: 29 | AD48: 30 | AE48: 31 | AF48: =AC48+3 -> 32 | AG48: =AF48+1 -> 33 | AH48: 34 | AI48: 35 | AJ48: 36
B49: 凡例名 | F49: 高さH | G49: 面積 | H49: 平均面積 | I49: 体積 | L49: 凡例名 | M49: 高さH | N49: 面積 | O49: 平均面積 | P49: 体積 | Q49: 凡例名 | R49: 高さH | S49: 面積 | T49: 平均面積 | U49: 体積 | V49: 凡例名 | W49: 高さH | X49: 面積 | Y49: 平均面積 | Z49: 体積 | AA49: 凡例名 | AB49: 高さH | AC49: 面積 | AD49: 平均面積 | AE49: 体積 | AF49: 凡例名 | AG49: 高さH | AH49: 面積 | AI49: 平均面積 | AJ49: 体積
B50: STEP-0：底面積（d=D） | F50: 0 | G50: 3.214601837 | H50: 3.179493663 | I50: 0.7948734157 | O50: =IFERROR(AVERAGE(N50:N51),"") ->  | P50: =IFERROR(O50*(M51-M50),"") ->  | T50: =IFERROR(AVERAGE(S50:S51),"") ->  | U50: =IFERROR(T50*(R51-R50),"") ->  | Y50: =IFERROR(AVERAGE(X50:X51),"") ->  | Z50: =IFERROR(Y50*(W51-W50),"") ->  | AD50: =IFERROR(AVERAGE(AC50:AC51),"") ->  | AE50: =IFERROR(AD50*(AB51-AB50),"") ->  | AI50: =IFERROR(AVERAGE(AH50:AH51),"") ->  | AJ50: =IFERROR(AI50*(AG51-AG50),"") -> 
B51: STEP-1：影響円D範囲(d≦D<b） | F51: 0.25 | G51: 3.144385489 | H51: 3.107774404 | I51: 0.776943601 | O51: =IFERROR(AVERAGE(N51:N52),"") ->  | P51: =IFERROR(O51*(M52-M51),"") ->  | T51: =IFERROR(AVERAGE(S51:S52),"") ->  | U51: =IFERROR(T51*(R52-R51),"") ->  | Y51: =IFERROR(AVERAGE(X51:X52),"") ->  | Z51: =IFERROR(Y51*(W52-W51),"") ->  | AD51: =IFERROR(AVERAGE(AC51:AC52),"") ->  | AE51: =IFERROR(AD51*(AB52-AB51),"") ->  | AI51: =IFERROR(AVERAGE(AH51:AH52),"") ->  | AJ51: =IFERROR(AI51*(AG52-AG51),"") -> 
B52: STEP-1：影響円D範囲(d≦D<b） | F52: 0.5 | G52: 3.071163319 | H52: 3.033049322 | I52: 0.7582623304
B53: STEP-1：影響円D範囲(d≦D<b） | F53: 0.75 | G53: 2.994935325 | H53: 2.955318416 | I53: 0.738829604
B54: STEP-1：影響円D範囲(d≦D<b） | F54: 1 | G54: 2.915701507 | H54: 2.874581687 | I54: 0.7186454218
B55: STEP-1：影響円D範囲(d≦D<b） | F55: 1.25 | G55: 2.833461867 | H55: 2.790839135 | I55: 0.6977097837
B56: STEP-1：影響円D範囲(d≦D<b） | F56: 1.5 | G56: 2.748216403 | H56: 2.704090759 | I56: 0.6760226898
B57: STEP-1：影響円D範囲(d≦D<b） | F57: 1.75 | G57: 2.659965116 | H57: 2.61433656 | I57: 0.6535841401
B58: STEP-1：影響円D範囲(d≦D<b） | F58: 2 | G58: 2.568708005 | H58: 2.521576538 | I58: 0.6303941345
B59: STEP-1：影響円D範囲(d≦D<b） | F59: 2.25 | G59: 2.474445071 | H59: 2.425810692 | I59: 0.6064526731
B60: STEP-1：影響円D範囲(d≦D<b） | F60: 2.5 | G60: 2.377176314 | H60: 2.327039024 | I60: 0.5817597559
B61: STEP-1：影響円D範囲(d≦D<b） | F61: 2.75 | G61: 2.276901733 | H61: 2.225261531 | I61: 0.5563153828
B62: STEP-1：影響円D範囲(d≦D<b） | F62: 3 | G62: 2.173621329 | H62: 2.120478216 | I62: 0.5301195539
B63: STEP-1：影響円D範囲(d≦D<b） | F63: 3.25 | G63: 2.067335102 | H63: 2.012689077 | I63: 0.5031722692
B64: STEP-1：影響円D範囲(d≦D<b） | F64: 3.5 | G64: 1.958043052 | H64: 1.901894115 | I64: 0.4754735287
B65: STEP-1：影響円D範囲(d≦D<b） | F65: 3.75 | G65: 1.845745178 | H65: 1.788093329 | I65: 0.4470233323
B66: STEP-1：影響円D範囲(d≦D<b） | F66: 4 | G66: 1.73044148 | H66: 1.67128672 | I66: 0.4178216801
B67: STEP-1：影響円D範囲(d≦D<b） | F67: 4.25 | G67: 1.61213196 | H67: 1.551474288 | I67: 0.387868572
B68: STEP-1：影響円D範囲(d≦D<b） | F68: 4.5 | G68: 1.490816616 | H68: 1.428656033 | I68: 0.3571640081
B69: STEP-1：影響円D範囲(d≦D<b） | F69: 4.75 | G69: 1.366495449 | H69: 1.302831954 | I69: 0.3257079884
B70: STEP-1：影響円D範囲(d≦D<b） | F70: 5 | G70: 1.239168458 | H70: 1.174002052 | I70: 0.2935005129
B71: STEP-1：影響円D範囲(d≦D<b） | F71: 5.25 | G71: 1.108835645 | H71: 1.042166326 | I71: 0.2605415815
B72: STEP-1：影響円D範囲(d≦D<b） | F72: 5.5 | G72: 0.9754970075 | H72: 0.9169521769 | I72: 0.1971686976
B73: STEP-2：影響円D範囲(b≦D<a） | F73: 5.715026151 | G73: 0.8584073464 | H73: 0.8582515962 | I73: 0.0004904930317
B74: STEP-3：影響円D範囲(a≦D<√(a^2+b^2）） | F74: 5.715597654 | G74: 0.858095846 | H74: 0.8009605112 | I74: 0.2002401278
B75: STEP-3：影響円D範囲(a≦D<√(a^2+b^2）） | F75: 5.965597654 | G75: 0.7438251765 | H75: 0.695608191 | I75: 0.1739020478
B76: STEP-3：影響円D範囲(a≦D<√(a^2+b^2）） | F76: 6.215597654 | G76: 0.6473912056 | H76: 0.6047299776 | I76: 0.1511824944
B77: STEP-3：影響円D範囲(a≦D<√(a^2+b^2）） | F77: 6.465597654 | G77: 0.5620687496 | H77: 0.5238118896 | I77: 0.1309529724
B78: STEP-3：影響円D範囲(a≦D<√(a^2+b^2）） | F78: 6.715597654 | G78: 0.4855550296 | H78: 0.4510618405 | I78: 0.1127654601
B79: STEP-3：影響円D範囲(a≦D<√(a^2+b^2）） | F79: 6.965597654 | G79: 0.4165686514 | H79: 0.3854223723 | I79: 0.09635559308
B80: STEP-3：影響円D範囲(a≦D<√(a^2+b^2）） | F80: 7.215597654 | G80: 0.3542760932 | H80: 0.3261815105 | I80: 0.08154537763
B81: STEP-3：影響円D範囲(a≦D<√(a^2+b^2）） | F81: 7.465597654 | G81: 0.2980869278 | H81: 0.2728231862 | I81: 0.06820579656
B82: STEP-3：影響円D範囲(a≦D<√(a^2+b^2）） | F82: 7.715597654 | G82: 0.2475594447 | H82: 0.2249548728 | I82: 0.05623871819
B83: STEP-3：影響円D範囲(a≦D<√(a^2+b^2）） | F83: 7.965597654 | G83: 0.2023503008 | H83: 0.1822676107 | I83: 0.04556690267
B84: STEP-3：影響円D範囲(a≦D<√(a^2+b^2）） | F84: 8.215597654 | G84: 0.1621849205 | H84: 0.144511879 | I84: 0.03612796976
B85: STEP-3：影響円D範囲(a≦D<√(a^2+b^2）） | F85: 8.465597654 | G85: 0.1268388375 | H85: 0.1114820669 | I85: 0.02787051673
B86: STEP-3：影響円D範囲(a≦D<√(a^2+b^2）） | F86: 8.715597654 | G86: 0.09612529634 | H86: 0.08300598086 | I86: 0.02075149521
B87: STEP-3：影響円D範囲(a≦D<√(a^2+b^2）） | F87: 8.965597654 | G87: 0.06988666538 | H87: 0.06825258185 | I87: 0.002348048936
B88: STEP-3：影響円D範囲(a≦D<√(a^2+b^2）） | F88: 9 | G88: 0.06661849831 | H88: 0.06661849831 | I88: 0
F89: 9
T95: =IFERROR(AVERAGE(S95:S96),"") ->  | U95: =IFERROR(T95*(R96-R95),"") ->  | Y95: =IFERROR(AVERAGE(X95:X96),"") ->  | Z95: =IFERROR(Y95*(W96-W95),"") ->  | AD95: =IFERROR(AVERAGE(AC95:AC96),"") ->  | AE95: =IFERROR(AD95*(AB96-AB95),"") ->  | AI95: =IFERROR(AVERAGE(AH95:AH96),"") ->  | AJ95: =IFERROR(AI95*(AG96-AG95),"") -> 
O115: =IFERROR(AVERAGE(N115:N116),"") ->  | P115: =IFERROR(O115*(M116-M115),"") -> 
T159: =IFERROR(AVERAGE(S159:S160),"") ->  | U159: =IFERROR(T159*(R160-R159),"") ->  | Y159: =IFERROR(AVERAGE(X159:X160),"") ->  | Z159: =IFERROR(Y159*(W160-W159),"") ->  | AD159: =IFERROR(AVERAGE(AC159:AC160),"") ->  | AE159: =IFERROR(AD159*(AB160-AB159),"") ->  | AI159: =IFERROR(AVERAGE(AH159:AH160),"") ->  | AJ159: =IFERROR(AI159*(AG160-AG159),"") -> 
O173: =IFERROR(AVERAGE(K173:K174),"") ->  | P173: =IFERROR(O173*(J174-M173),"") ->  | T173: =IFERROR(AVERAGE(P173:P174),"") ->  | U173: =IFERROR(T173*(O174-R173),"") ->  | Y173: =IFERROR(AVERAGE(U173:U174),"") ->  | Z173: =IFERROR(Y173*(T174-W173),"") ->  | AD173: =IFERROR(AVERAGE(Z173:Z174),"") ->  | AE173: =IFERROR(AD173*(Y174-AB173),"") ->  | AI173: =IFERROR(AVERAGE(AE173:AE174),"") ->  | AJ173: =IFERROR(AI173*(AD174-AG173),"") -> 

Sheet ☆
A1: 盛土体積 計算条件 | L1: ※shift+gで体積の計算マクロだけ起動する。
B2: 項 目 | E2: 記号 | F2: 値 | G2: 単位 | H2: 備考 | N2: 旧計算Vsoil | O2: 配置別底面積
C3: 改良体配置 | F3: 単軸四角形配置 | H3: 飛び出ないようにダミー入力 | M3: 単軸三角形配置 | N3: =W19 -> 15.527841 | O3: =INDIRECT("'"&$M$3&"'!"&P3) -> 2.645 | P3: S26 | Q3: Ｖsoil算出のための判定式及び適用式（単軸四角形配置） | AE3: 二軸四角形配置 | AJ3: 仕様の確認用グラフ
B4: セメント コラム 改良体 | C4: 改良体直径 | E4: ｄ | F4: 1 | G4: m | M4: 単軸四角形配置 | N4: =+LOOKUP(Z9,Q5:Q7,AD5:AD7) -> 10.60578393 | O4: =INDIRECT("'"&$M$4&"'!"&P4) -> 5.29 | P4: R26 | R4: 盛土高さ | T4: 改良体間荷重算定モデルと盛土高さとの関係 | Z4: 判定式 | AB4: 適用式 | AC4: Ｖsoil | AD4: 計算結果 | AE4: 適用式 | AF4: Ｖsoil | AG4: 計算結果 | AH4: 計算結果 | AJ4: 標準的な仕様範囲 | AM4: 試験施工などで検討可能な範囲
C5: 改良体間隔 (改良体中心間隔) | E5: a | F5: 2.3 | G5: 〃 | M5: 二軸四角配置 | N5: =+LOOKUP(Z9,Q5:Q7,AH5:AH7) -> 15.43498103 | O5: =INDIRECT("'"&$M$5&"'!"&P5) ->  | P5: S26 | Q5: 1 | R5: Ｈe1以上 | T5: 改良体間荷重算定モデル土塊が全て盛土内 | Z5: Ｈe1≦Ｈe | AB5: 5.8 | AC5: {(λ－ｄ)／2×λ^2－π×(λ^3－ｄ^3)／24＋(4－π)×(√2－1)／24×λ^3}×tanθ | AD5: =((F9-F4)/2*F9^2-PI()*(F9^3-F4^3)/24+(4-PI())*(2^0.5-1)/24*F9^3)*TAN(RADIANS(F15))+(F10*(F9-F10))/4*((2^0.5+1)/2*F10+((F9/2)^2+(F10/2)^2)^0.5+F9/2-2*F4)*TAN(RADIANS(F15)) -> 24.65461405 | AE5: p17 2007マニュアル | AF5: 1/2(λ-d)・(λ-d)/2・tanθ・d/2・2＝ | AG5: =((1/2*(F9-F4))^2)*TAN(RADIANS(F15))*F4 -> 4.829197098 | AH5: =AD5+AG5 -> 29.48381115 | AJ5: d | AK5: λ | AL5: ap | AM5: d | AN5: λ | AO5: ap
E6: b | F6: 2.3 | G6: 〃 | M6: 二軸千鳥配置 | N6: ※未対応 | O6: =INDIRECT("'"&$M$6&"'!"&P6) -> 0 | P6: V26 | Q6: 2 | R6: Ｈe2～Ｈe1 | T6: 改良体間荷重算定モデル土塊の上部が盛土上面にある | Z6: Ｈe2＜Ｈe＜Ｈe1 | AB6: 5.9 | AC6: [(λ－ｄ)／2×λ^2－π×(λ^3－ｄ^3)／24＋【1-［{(0.5^2-d)tanθ-2Ｈe}／{(√2-1)×λ×tanθ}］^3】×(4－π)×(√2－1)／24×λ^3]×tanθ | AD6: =+((F9-F4)/2*F9^2-PI()*(F9^3-F4^3)/24+(1-(((2^0.5*F9-F4)*TAN(RADIANS(F15))-2*W9)/(2^0.5-1)/F9/TAN(RADIANS(F15)))^3)*(4-PI())*(2^0.5-1)/24*F9^3)*TAN(RADIANS(F15))+(F10*(F9-F10))/4*((2^0.5+1)/2*F10+((F9/2)^2+(F10/2)^2)^0.5+F9/2-2*F4)*TAN(RADIANS(F15)) -> 10.76988962 | AG6: =AG5 -> 4.829197098 | AH6: =AD6+AG6 -> 15.59908672 | AJ6: 0.6 | AK6: 1 | AL6: =+AJ6^2/4*PI()/AK6^2*100 -> 28.27433388 | AM6: 0.6 | AN6: 1 | AO6: =+AM6^2/4*PI()/AN6/AN6*100 -> 28.27433388
C7: =IF(OR(F3=M6,F3=M5),"分担面 横","") ->  | E7: =IF(OR(F3=M6,F3=M5),"L","") ->  | F7: =IF(OR(F3=M6,F3=M5),F4+F6,"") ->  | G7: 〃 | M7: 計算に反映⇨ | N7: =IF(F3=M6,N6,(LOOKUP(F3,M3:M5,N3:N5))) -> 10.60578393 | Q7: 3 | R7: Ｈe2以下 | Z7: Ｈe≦Ｈe2 | AB7: 5.10 | AC7: λ^2×Ｈe－1／3×{π×(Ｈe／tanθ＋ｄ／2)^2×(ｄ／2tanθ×Ｈe)－π×(ｄ／2)^3×tanθ} | AD7: =+F9*F9*W9-1/3*(PI()*(W9/TAN(RADIANS(F15))+F4/2)^2*(F4/2*TAN(RADIANS(F15))+W9)-PI()*(F4/2)^3*TAN(RADIANS(F15)))+(F10*(F9-F10))/4*((2^0.5+1)/2*F10+((F9/2)^2+(F10/2)^2)^0.5+F9/2-2*F4)*TAN(RADIANS(F15)) -> 10.60578393 | AG7: =AG5 -> 4.829197098 | AH7: =AD7+AG7 -> 15.43498103 | AJ7: 1 | AK7: 1 | AL7: =+AJ7^2/4*PI()/AK7^2*100 -> 78.53981634 | AM7: 1 | AN7: 1 | AO7: =+AM7^2/4*PI()/AN7/AN7*100 -> 78.53981634
C8: =IF(F3=M6,"分担面 縦","") ->  | E8: =IF(F3=M6,"h","") ->  | G8: 〃 | N8: 3.631423736 | AJ8: 1.3 | AK8: 1.3 | AL8: =+AJ8^2/4*PI()/AK8^2*100 -> 78.53981634 | AM8: 1.3 | AN8: 1.3 | AO8: =+AM8^2/4*PI()/AN8^2*100 -> 78.53981634
C9: =IF(OR(F3=M5,F3=M4),"改良体間隔(大)","") -> 改良体間隔(大) | E9: =IF(OR(F3=M5,F3=M4),"λ","") -> λ | F9: =IF(OR(F3=M5,F3=M4),MAX(F5:F6),"") -> 2.3 | G9: 〃 | R9: Ｈe： | S9: 盛土高さ | V9: Ｈe＝ | W9: =+F13 -> 2.59 | X9: m | Y9: 判定： | Z9: =+IF(W9>=W10,1,IF(W9<=W11,3,2)) -> 3 | AJ9: 1.3 | AK9: 2.5 | AL9: =+AJ9^2/4*PI()/AK9^2*100 -> 21.23716634 | AM9: 1.8 | AN9: 1.8 | AO9: =+AM9^2/4*PI()/AN9^2*100 -> 78.53981634
C10: =IF(OR(F3=M5,F3=M4),"改良体間隔(小)","") -> 改良体間隔(小) | E10: =IF(OR(F3=M5,F3=M4),"x","") -> x | F10: =IF(OR(F3=M5,F3=M4),MIN(F5:F6),"") -> 2.3 | G10: 〃 | L10: 盛土高 | R10: Ｈe1： | S10: {(√2・λ－ｄ)tanθ}／2 | V10: Ｈe1＝ | W10: =+((SQRT(2)*F5-F4)*TAN(RADIANS(F15))/2) -> 12.87418908 | X10: m | AJ10: =+SQRT(AL10/100*4/PI()*AK10*AK10) -> 0.8920620581 | AK10: 2.5 | AL10: 10 | AM10: 1.8 | AN10: 3.25 | AO10: =+AM10^2/4*PI()/AN10/AN10*100 -> 24.09174011
C11: 改良率 | E11: ａp | F11: =INDIRECT("'"&$F$3&"'!"&O11) -> 0.148 | G11: - | L11: 計画高 | M11: 原地盤高 | N11: 盛土高 | O11: F8 | R11: Ｈe2： | S11: {(λ－ｄ)tanθ}／2 | V11: Ｈe2＝ | W11: =+((F5-F4)*TAN(RADIANS(F15))/2) -> 7.429533997 | X11: m | AJ11: 0.6 | AK11: =+SQRT((AJ11^2/4*PI())/(AL11/100)) -> 1.681497365 | AL11: 10 | AM11: =+SQRT(AO11/100*4/PI()*AN11*AN11) -> 0.9869286964 | AN11: 3 | AO11: 8.5
B12: =IF(AND(F3=M6,F4<>F5),"※注意①a=dに設定してください!",IF(AND(F3<>M6,F8<>""),"※注意③F8を空欄に設定してください!","")) ->  | E12: =IF(AND(F3=M6,F8=""),"※注意➁高さhを設定してください!","") ->  | L12: 2.59 | M12: 0 | N12: =+L12-M12 -> 2.59 | AJ12: =+AJ6 -> 0.6 | AK12: =+AK6 -> 1 | AL12: =+AL6 -> 28.27433388 | AM12: 0.6 | AN12: =+SQRT((AM12^2/4*PI())/(AO12/100)) -> 1.823839966 | AO12: 8.5
B13: 盛土条件 | C13: 盛土高さ | E13: Ｈe | F13: =+N12 -> 2.59 | G13: m | H13: =+IF(AND(L12="",M12=""),"","ＦH＝"&FIXED(L12,2)&"m，ＧL＝"&FIXED(M12,2)&"m") -> ＦH＝2.59m，ＧL＝0.00m | Q13: Ｖsoil算出のための判定式及び適用式（⇒単軸千鳥？or単軸三角形配置） | AM13: =+AM6 -> 0.6 | AN13: =+AN6 -> 1 | AO13: =+AO6 -> 28.27433388
C14: 盛土の内部摩擦角 | E14: φ | F14: 30 | G14: 度 | L14: 塑性角 | M14: =+D15 -> 浮き型 | R14: d | S14: =F4 -> 1 | T14: D1 | U14: =1/2*SQRT(S20^2+S15^2/4) -> 1.408456602 | V14: V1 | W14: =0.5*S15*S20*U18 -> 31.68839018 | AJ14: =+AJ15 -> 1 | AK14: =+AK33 -> 0
B15: 塑性角 | C15: 改良形式： | D15: 浮き型 | E15: θ | F15: =+IF(D16=L15,L16,IF(D16=M15,M16,IF(D16=N15,N16,""))) -> 85 | G15: 度 | L15: ジオテキ | M15: 浅層改良 | N15: なし | O15: 塑性角予備 | R15: λ | S15: =F6 -> 2.3 | T15: D2 | U15: =U14-S14/2 -> 0.9084566021 | V15: V2 | W15: =(S23^2*((U18+U23)-S14^2/4*U23))*S19/3/2 -> 4.3455369 | AJ15: =+F4 -> 1 | AK15: =+MAX(F5:F6) -> 2.3
C16: 補助工法： | D16: 浅層改良 | L16: =+IF(M14="浮き型",75,55) -> 75 | M16: =+IF(M14="浮き型",85,75) -> 85 | N16: =+IF(M14="浮き型",80,90-$F$14) -> 80 | O16: =+IF(D16=L15,L16,IF(D16=M15,M16,IF(D16=N15,N16,""))) -> 85 | R16: a | S16: =F5 -> 2.3 | T16: D3 | U16: =S15/2 -> 1.15 | V16: V3 | W16: =(S23^2*((U18+U23)-S14^2/4*U23))*S17/3/2 -> 5.9430414 | AJ16: =+AJ35 -> 0 | AK16: =+AK15 -> 2.3
B17: 影響円D | C17: 影響円直径D | D17: その時の高さ | E17: 影響円Dの範囲条件 | I17: 概要 | R17: α | S17: =PI()-S18-3/2*S19 -> 1.150261992 | T17: D4 | U17: =U16-S14/2 -> 0.65 | V17: V4 | W17: =(S18/2*(S23^2)-0.5*(U14^2)*TAN(S18))*2*U21/3 -> -0.5369854387
B18: =INDIRECT("'"&$C$24&"'!"&L18) -> d | C18: 1 | D18: 0 | E18: STEP-0：底面積（d=D） | I18: 底面積A0 | L18: B17 | M18: C17 | N18: D17 | O18: U5 | R18: β | S18: =ATAN((-(S15^2)+4*(S20^2))/(4*S15*S20)) -> 0.7297276562 | T18: h1 | U18: =(S23-S14/2)*TAN(RADIANS(F15)) -> 10.71567403 | V18: V5 | W18: =(S19/4*(S23^2)-0.5*(U16^2)*TAN(S19/2))*2/3*U22 -> 0.3040279789
B19: b | C19: 2.3 | D19: 7.429533997 | E19: STEP-1：影響円D範囲(d≦D<b） | I19: 底面積A1 | L19: B18 | M19: C18 | N19: D18 | O19: U6 | R19: γ | S19: =2*ATAN(S15/2/S20) -> 0.8410686706 | T19: h2 | U19: =(U15-S14/2)*TAN(RADIANS(F15)) -> 4.668680325 | V19: Vsoil | W19: =W14-(W15+2*W16-W17-2*W18) -> 15.527841
B20: a | C20: 2.3001 | D20: 7.430105499 | E20: STEP-2：影響円D範囲(b≦D<a） | I20: 底面積A2 | L20: B19 | M20: C19 | N20: D19 | O20: U7 | R20: μ | S20: =SQRT(S15^2+(S16/2)^2) -> 2.571478174 | T20: h3 | U20: =(U16-S14/2)*TAN(RADIANS(F15)) -> 7.429533997
B21: √(a2+b2） | C21: 3.252691193 | D21: 12.87418908 | E21: STEP-3：影響円D範囲(a≦D<√(a^2+b^2）） | I21: 底面積A3 | L21: B20 | M21: C20 | N21: D20 | O21: U8 | R21: s | S21: =(S15+2*S20)/2 -> 3.721478174 | T21: h4 | U21: =U18-U19 -> 6.046993708
B22: --- | C22: --- | D22: end | E22: 計算範囲外 | I22: =IF(D22="end","","底面積A4") ->  | L22: B21 | M22: C21 | N22: D21 | O22: U9 | R22: 4√｛(s(s-λ)(s-μ)(ｓ-c)｝ | S22: =4*SQRT(S21*(S21-S15)*(S21-S20)*(S21-S20)) -> 10.58 | T22: h5 | U22: =U18-U20 -> 3.286140037
A23: 体積の算出 | R23: 外接円R | S23: =S15*S20*S20/S22 -> 1.4375 | T23: h6 | U23: =S14/2*TAN(RADIANS(F15)) -> 5.715026151
B24: 配置型式 | C24: =F3 -> 単軸四角形配置
B25: スタート | C25: =M12 -> 0 | D25: m | F25: step数 | G25: =INDIRECT("'"&$C$24&"'!"&L25) -> STEP-1：影響円D範囲(d≦D<b） | L25: AB23
B26: エンド | C26: =L12 -> 2.59 | D26: m | F26: 高さH | I26: 2.59 | J26: m
B27: キザミ | C27: =C29 -> 0.08633333333 | D27: m | E27: 30 | F27: 面積 | I27: =INDIRECT("'"&$C$24&"'!"&L27) -> 3.631423736 | J27: m2 | L27: AA23
B28: 回数 | C28: =INT((C26-C25)/C27)+2 -> 32 | D28: 回 | F28: 体積 | I28: =I46 -> 10.60570656 | J28: m3
B29: 参考キザミ幅 | C29: =IF(C26>=L37,L37/E27,C26/E27) -> 0.08633333333 | D29: m
A31: 盛土計算各step上限地盤高さ | L31: D17
B32: step0 | C32: =INDIRECT("'"&$C$24&"'!"&L31) -> 0 | L32: D18
B33: step1 | C33: =INDIRECT("'"&$C$24&"'!"&L32) -> 7.429533997 | L33: D19
B34: step2 | C34: =INDIRECT("'"&$C$24&"'!"&L33) -> 7.430105499 | L34: D20
B35: step3 | C35: =INDIRECT("'"&$C$24&"'!"&L34) -> 12.87418908 | L35: D21
B36: step4 | C36: =INDIRECT("'"&$C$24&"'!"&L35) -> end | L36: ⇩盛土高のキザミで、単軸と二軸の条件分けのため：参照先C29
C37: end | L37: =IF(OR(M3=F3,M4=F3),C35,C36) -> 12.87418908
B42: 出力列№(step数） | D42: 2 | U42: 2.0m | Z42: 3.0m
B43: 出力列№ (横軸） | D43: 6 | Q43: m2 | V43: m2
B44: 出力列№ (縦軸） | D44: =D43+1 -> 7 | F44: （参考）旧計算Vsoil= | G44: =IF(F3=M6,N6,FIXED(LOOKUP(F3,M3:M5,N3:N5),2)&"(㎥)") -> 10.61(㎥) | I44: ∴新計算体積Vsoil= | J44: =FIXED(I46,2)&"(㎥)" -> 10.61(㎥) | O44: 旧Vsoil | Q44: m2 | T44: 旧Vsoil | U44: 1.125545804 | V44: m2 | Y44: 旧Vsoil | Z44: 1.125640301 | AA44: m2 | AD44: 旧Vsoil | AE44: 0.9695456115 | AF44: m2 | AI44: 旧Vsoil | AK44: m2
H45: Asoil= | I45: =N8 -> 3.631423736 | J45: m2 | O45: Asoil= | T45: Asoil= | Y45: Asoil= | AA45: m2 | AD45: Asoil= | AI45: Asoil= | AK45: m2
A46: 盛土体積【詳細】 | C46: =COUNTA(B49:B1000) -> 32 | H46: Vsoil= | I46: =SUM(I49:I1074) -> 10.60570656 | J46: m2 | O46: Vsoil= | P46: =SUM(P49:P1074) -> 0 | T46: Vsoil= | U46: =SUM(U49:U1074) -> 0 | Y46: Vsoil= | Z46: =SUM(Z49:Z1074) -> 0 | AA46: m2 | AD46: Vsoil= | AE46: =SUM(AE49:AE1074) -> 0 | AF46: m2 | AI46: Vsoil= | AJ46: =SUM(AJ49:AJ1074) -> 0 | AK46: m2
B47: 表示列№ | F47: 6 | G47: =F47+1 -> 7 | H47: 8 | I47: 9 | L47: =I47+3 -> 12 | M47: 13 | N47: 14 | O47: 15 | P47: 16 | Q47: =N47+3 -> 17 | R47: =Q47+1 -> 18 | S47: =R47+1 -> 19 | T47: =S47+1 -> 20 | U47: =T47+1 -> 21 | V47: =S47+3 -> 22 | W47: =V47+1 -> 23 | X47: =W47+1 -> 24 | Y47: =X47+1 -> 25 | Z47: =Y47+1 -> 26 | AA47: =X47+3 -> 27 | AB47: =AA47+1 -> 28 | AC47: =AB47+1 -> 29 | AD47: =AC47+1 -> 30 | AE47: =AD47+1 -> 31 | AF47: =AC47+3 -> 32 | AG47: =AF47+1 -> 33 | AH47: =AG47+1 -> 34 | AI47: =AH47+1 -> 35 | AJ47: =AI47+1 -> 36
B48: 凡例名 | F48: 高さH | G48: 面積 | H48: 平均面積 | I48: 体積 | L48: 凡例名 | M48: 高さH | N48: 面積 | O48: 平均面積 | P48: 体積 | Q48: 凡例名 | R48: 高さH | S48: 面積 | T48: 平均面積 | U48: 体積 | V48: 凡例名 | W48: 高さH | X48: 面積 | Y48: 平均面積 | Z48: 体積 | AA48: 凡例名 | AB48: 高さH | AC48: 面積 | AD48: 平均面積 | AE48: 体積 | AF48: 凡例名 | AG48: 高さH | AH48: 面積 | AI48: 平均面積 | AJ48: 体積
B49: STEP-0：底面積（d=D） | F49: 0 | G49: 4.504601837 | H49: =IFERROR(AVERAGE(G49:G50),"") -> 4.492647702 | I49: =IFERROR(H49*(F50-F49),"") -> 0.3878652516 | O49: =IFERROR(AVERAGE(N49:N50),"") ->  | P49: =IFERROR(O49*(M50-M49),"") ->  | T49: =IFERROR(AVERAGE(S49:S50),"") ->  | U49: =IFERROR(T49*(R50-R49),"") ->  | Y49: =IFERROR(AVERAGE(X49:X50),"") ->  | Z49: =IFERROR(Y49*(W50-W49),"") ->  | AD49: =IFERROR(AVERAGE(AC49:AC50),"") ->  | AE49: =IFERROR(AD49*(AB50-AB49),"") ->  | AI49: =IFERROR(AVERAGE(AH49:AH50),"") ->  | AJ49: =IFERROR(AI49*(AG50-AG49),"") -> 
B50: STEP-1：影響円D範囲(d≦D<b） | F50: 0.08633333333 | G50: 4.480693567 | H50: =IFERROR(AVERAGE(G50:G51),"") -> 4.468560202 | I50: =IFERROR(H50*(F51-F50),"") -> 0.3857856975 | O50: =IFERROR(AVERAGE(N50:N51),"") ->  | P50: =IFERROR(O50*(M51-M50),"") ->  | T50: =IFERROR(AVERAGE(S50:S51),"") ->  | U50: =IFERROR(T50*(R51-R50),"") ->  | Y50: =IFERROR(AVERAGE(X50:X51),"") ->  | Z50: =IFERROR(Y50*(W51-W50),"") ->  | AD50: =IFERROR(AVERAGE(AC50:AC51),"") ->  | AE50: =IFERROR(AD50*(AB51-AB50),"") ->  | AI50: =IFERROR(AVERAGE(AH50:AH51),"") ->  | AJ50: =IFERROR(AI50*(AG51-AG50),"") -> 
B51: STEP-1：影響円D範囲(d≦D<b） | F51: 0.1726666667 | G51: 4.456426837 | H51: 4.444114243 | I51: 0.3836751963
B52: STEP-1：影響円D範囲(d≦D<b） | F52: 0.259 | G52: 4.431801648 | H52: 4.419309824 | I52: 0.3815337481
B53: STEP-1：影響円D範囲(d≦D<b） | F53: 0.3453333333 | G53: 4.406817999 | H53: 4.394146945 | I53: 0.3793613529
B54: STEP-1：影響円D範囲(d≦D<b） | F54: 0.4316666667 | G54: 4.38147589 | H54: 4.368625606 | I54: 0.3771580106
B55: STEP-1：影響円D範囲(d≦D<b） | F55: 0.518 | G55: 4.355775322 | H55: 4.342745807 | I55: 0.3749237214
B56: STEP-1：影響円D範囲(d≦D<b） | F56: 0.6043333333 | G56: 4.329716293 | H56: 4.316507549 | I56: 0.3726584851
B57: STEP-1：影響円D範囲(d≦D<b） | F57: 0.6906666667 | G57: 4.303298805 | H57: 4.289910831 | I57: 0.3703623017
B58: STEP-1：影響円D範囲(d≦D<b） | F58: 0.777 | G58: 4.276522857 | H58: 4.262955653 | I58: 0.3680351714
B59: STEP-1：影響円D範囲(d≦D<b） | F59: 0.8633333333 | G59: 4.249388449 | H59: 4.235642015 | I59: 0.365677094
B60: STEP-1：影響円D範囲(d≦D<b） | F60: 0.9496666667 | G60: 4.221895581 | H60: 4.207969918 | I60: 0.3632880696
B61: STEP-1：影響円D範囲(d≦D<b） | F61: 1.036 | G61: 4.194044254 | H61: 4.17993936 | I61: 0.3608680981
B62: STEP-1：影響円D範囲(d≦D<b） | F62: 1.122333333 | G62: 4.165834467 | H62: 4.151550343 | I62: 0.3584171796
B63: STEP-1：影響円D範囲(d≦D<b） | F63: 1.208666667 | G63: 4.13726622 | H63: 4.122802866 | I63: 0.3559353141
B64: STEP-1：影響円D範囲(d≦D<b） | F64: 1.295 | G64: 4.108339513 | H64: 4.09369693 | I64: 0.3534225016
B65: STEP-1：影響円D範囲(d≦D<b） | F65: 1.381333333 | G65: 4.079054346 | H65: 4.064232533 | I65: 0.350878742
B66: STEP-1：影響円D範囲(d≦D<b） | F66: 1.467666667 | G66: 4.04941072 | H66: 4.034409677 | I66: 0.3483040354
B67: STEP-1：影響円D範囲(d≦D<b） | F67: 1.554 | G67: 4.019408634 | H67: 4.004228361 | I67: 0.3456983818
B68: STEP-1：影響円D範囲(d≦D<b） | F68: 1.640333333 | G68: 3.989048088 | H68: 3.973688585 | I68: 0.3430617812
B69: STEP-1：影響円D範囲(d≦D<b） | F69: 1.726666667 | G69: 3.958329082 | H69: 3.942790349 | I69: 0.3403942335
B70: STEP-1：影響円D範囲(d≦D<b） | F70: 1.813 | G70: 3.927251617 | H70: 3.911533654 | I70: 0.3376957388
B71: STEP-1：影響円D範囲(d≦D<b） | F71: 1.899333333 | G71: 3.895815691 | H71: 3.879918499 | I71: 0.334966297
B72: STEP-1：影響円D範囲(d≦D<b） | F72: 1.985666667 | G72: 3.864021306 | H72: 3.847944884 | I72: 0.3322059083
B73: STEP-1：影響円D範囲(d≦D<b） | F73: 2.072 | G73: 3.831868461 | H73: 3.815612809 | I73: 0.3294145725
B74: STEP-1：影響円D範囲(d≦D<b） | F74: 2.158333333 | G74: 3.799357156 | H74: 3.782922274 | I74: 0.3265922897
B75: STEP-1：影響円D範囲(d≦D<b） | F75: 2.244666667 | G75: 3.766487392 | H75: 3.74987328 | I75: 0.3237390598
B76: STEP-1：影響円D範囲(d≦D<b） | F76: 2.331 | G76: 3.733259167 | H76: 3.716465825 | I76: 0.3208548829
B77: STEP-1：影響円D範囲(d≦D<b） | F77: 2.417333333 | G77: 3.699672483 | H77: 3.682699911 | I77: 0.317939759
B78: STEP-1：影響円D範囲(d≦D<b） | F78: 2.503666667 | G78: 3.665727339 | H78: 3.648575538 | I78: 0.3149936881
B79: STEP-1：影響円D範囲(d≦D<b） | F79: 2.59 | G79: 3.631423736 | H79: 3.631423736 | I79: =IFERROR(H79*(F80-F79),"") -> 1.612676097e-15
B80: STEP-1：影響円D範囲(d≦D<b） | F80: 2.59 | G80: 3.631423736 | H80: 3.631423736 | I80: =IFERROR(H80*(F81-F80),"") -> 0
F81: 2.59
T94: =IFERROR(AVERAGE(S94:S95),"") ->  | U94: =IFERROR(T94*(R95-R94),"") ->  | Y94: =IFERROR(AVERAGE(X94:X95),"") ->  | Z94: =IFERROR(Y94*(W95-W94),"") ->  | AD94: =IFERROR(AVERAGE(AC94:AC95),"") ->  | AE94: =IFERROR(AD94*(AB95-AB94),"") ->  | AI94: =IFERROR(AVERAGE(AH94:AH95),"") ->  | AJ94: =IFERROR(AI94*(AG95-AG94),"") -> 
H114: =IFERROR(AVERAGE(G114:G115),"") ->  | O114: =IFERROR(AVERAGE(N114:N115),"") ->  | P114: =IFERROR(O114*(M115-M114),"") -> 
I144: =IFERROR(H144*(F145-F144),"") -> 
O146: =IFERROR(AVERAGE(N146:N147),"") ->  | P146: =IFERROR(O146*(M147-M146),"") -> 
T158: =IFERROR(AVERAGE(S158:S159),"") ->  | U158: =IFERROR(T158*(R159-R158),"") ->  | Y158: =IFERROR(AVERAGE(X158:X159),"") ->  | Z158: =IFERROR(Y158*(W159-W158),"") ->  | AD158: =IFERROR(AVERAGE(AC158:AC159),"") ->  | AE158: =IFERROR(AD158*(AB159-AB158),"") ->  | AI158: =IFERROR(AVERAGE(AH158:AH159),"") ->  | AJ158: =IFERROR(AI158*(AG159-AG158),"") -> 
O172: =IFERROR(AVERAGE(K172:K173),"") ->  | P172: =IFERROR(O172*(J173-M172),"") ->  | T172: =IFERROR(AVERAGE(P172:P173),"") ->  | U172: =IFERROR(T172*(O173-R172),"") ->  | Y172: =IFERROR(AVERAGE(U172:U173),"") ->  | Z172: =IFERROR(Y172*(T173-W172),"") ->  | AD172: =IFERROR(AVERAGE(Z172:Z173),"") ->  | AE172: =IFERROR(AD172*(Y173-AB172),"") ->  | AI172: =IFERROR(AVERAGE(AE172:AE173),"") ->  | AJ172: =IFERROR(AI172*(AD173-AG172),"") -> 
H178: =IFERROR(AVERAGE(G178:G179),"") -> 
I208: =IFERROR(H208*(F209-F208),"") -> 
H240: =IFERROR(AVERAGE(G240:G241),"") ->  | I240: =IFERROR(H240*(F241-F240),"") -> 
H304: =IFERROR(AVERAGE(G304:G305),"") ->  | I304: =IFERROR(H304*(F305-F304),"") -> 
H368: =IFERROR(AVERAGE(G368:G369),"") ->  | I368: =IFERROR(H368*(F369-F368),"") -> 
H432: =IFERROR(AVERAGE(G432:G433),"") ->  | I432: =IFERROR(H432*(F433-F432),"") -> 
H496: =IFERROR(AVERAGE(G496:G497),"") ->  | I496: =IFERROR(H496*(F497-F496),"") -> 
H517: =IFERROR(AVERAGE(G517:G518),"") ->  | I517: =IFERROR(H517*(F518-F517),"") -> 

Sheet 単軸三角形配置
A1: 盛土体積 計算条件 | L1: ☆ | M1: ⇦検討条件参照先
B2: 項 目 | E2: 記号 | F2: 値 | G2: 単位 | H2: 備考 | R2: ー積分計算に使用する部分ー
B3: セメント コラム 改良体 | C3: 改良体直径 | E3: ｄ | F3: =INDIRECT("'"&$L$1&"'!"&L3) -> 1 | G3: m | L3: F4 | M3: 改良体直径はd＝0.6～1.3m | T3: =VLOOKUP("〇",U12:W14,3,FALSE) -> 3
C4: 改良体間隔 (改良体中心間隔) | E4: a | F4: =INDIRECT("'"&$L$1&"'!"&L4) -> 2.3 | G4: 〃 | L4: F5 | M4: 改良体間隔はλ＝1.0～2.5m | R4: 影響円直径D | S4: その時の高さ | T4: 面積 | U4: 面積計算STEP | Y4: 影響円の範囲
E5: b | F5: =INDIRECT("'"&$L$1&"'!"&L5) -> 2.3 | G5: 〃 | L5: F6 | M5: 改良率はap＝10%以上 | T5: =T18 -> 2.252300918 | U5: =U18 -> STEP-0：底面積（d=D）
L6: F7 | Q6: 1 | R6: =SMALL($M$18:$M$22,Q6) -> 1 | S6: =SMALL($N$18:$N$22,Q6) -> 0 | T6: =VLOOKUP(R7,$M$19:$R$21,T3,FALSE) -> 1.815711868 | U6: =X6&Y6&Z6&AA6&"）" -> STEP-1：影響円D範囲(d≦D<a） | X6: STEP-1：影響円D範囲( | Y6: =R18 -> d | Z6: ≦D< | AA6: =VLOOKUP(R7,$M$19:$R$22,6,FALSE) -> a
L7: F8 | Q7: 2 | R7: =SMALL($M$18:$M$22,Q7) -> 2.3 | S7: =SMALL($N$18:$N$22,Q7) -> 7.429533997 | T7: =VLOOKUP(R8,$M$19:$R$21,T3,FALSE) ->  | U7: =X7&Y7&Z7&AA7&"）" -> STEP-2：影響円D範囲(a≦D<c） | X7: STEP-2：影響円D範囲( | Y7: =AA6 -> a | Z7: ≦D< | AA7: =VLOOKUP(R8,$M$19:$R$22,6,FALSE) -> c
C8: 改良率 | E8: ａp | F8: =ROUNDDOWN(T26,3) -> 0.148 | G8: - | L8: F13 | M8: 盛土高 | Q8: 3 | R8: =SMALL($M$18:$M$22,Q8) -> 2.571478174 | S8: =SMALL($N$18:$N$22,Q8) -> 8.981038861 | T8: =VLOOKUP(R9,$M$19:$R$21,T3,FALSE) ->  | U8: =X8&Y8&Z8&AA8&"）" -> STEP-3：影響円D範囲(c≦D<Dmax） | X8: STEP-3：影響円D範囲( | Y8: =AA7 -> c | Z8: ≦D< | AA8: =VLOOKUP(R9,$M$19:$R$22,6,FALSE) -> Dmax
M9: 計画高 | N9: 原地盤高 | Q9: 4 | R9: =SMALL($M$18:$M$22,Q9) -> 2.875 | S9: =SMALL($N$18:$N$22,Q9) -> 10.71567403 | T9: 0 | U9: 計算範囲外
M10: =INDIRECT("'"&$L$1&"'!"&O10) -> 2.59 | N10: =INDIRECT("'"&$L$1&"'!"&P10) -> 0 | O10: L12 | P10: M12 | Q10: 5
B12: 盛土条件 | C12: 盛土高さ | E12: Ｈe | F12: =INDIRECT("'"&$L$1&"'!"&L8) -> 2.59 | G12: m | H12: =+IF(AND(M10="",N10=""),"","ＦH＝"&FIXED(M10,2)&"m，ＧL＝"&FIXED(N10,2)&"m") -> ＦH＝2.59m，ＧL＝0.00m | L12: F15 | M12: D15 | T12: Case1 | U12: =IF(P26<=Q26,"〇","-") -> 〇 | V12: a≦b | W12: 3
B13: 塑性角 | C13: 改良形式： | D13: =INDIRECT("'"&$L$1&"'!"&M12) -> 浮き型 | E13: θ | F13: =INDIRECT("'"&$L$1&"'!"&L12) -> 85 | G13: 度 | M13: D16 | T13: Case2 | U13: =IF(AND(P26>Q26,R26>=P26),"〇","-") -> - | V13: a<b≦c | W13: 4
C14: 補助工法： | D14: =INDIRECT("'"&$L$1&"'!"&M13) -> 浅層改良 | F14: =INDIRECT("'"&$L$1&"'!"&M13) -> 浅層改良 | T14: Case3 | U14: =IF(R26<P26,"〇","-") -> - | V14: c<a | W14: 5
M15: Case1：b≦aの場合 | O15: 3 | P15: 4 | Q15: 5
B16: 影響円D | C16: 影響円直径D | D16: その時の高さ | E16: 高さ:計算例 | F16: 面積:計算例 | G16: 概要 | N16: その時の高さ | O16: 面積 | R16: 影響円直径D | AF16: その時の高さ | AG16: 面積 | AH16: 影響円直径D | AX16: その時の高さ | AY16: 面積 | AZ16: 影響円直径D
B17: =Y6 -> d | C17: =R6 -> 1 | D17: 0 | E17: =D17 -> 0 | F17: =F67 -> 2.252300918 | G17: STEP0 …底面積A0 | O17: case1 | P17: Case2 | Q17: case3 | AG17: case2 | AY17: case3
B18: =Y7 -> a | C18: 2.3 | D18: 7.429533997 | E18: =D18 -> 7.429533997 | F18: =E110 -> 0.5676218578 | G18: STEP1 …底面積A1 | M18: =N26 -> 1 | N18: =(M18-N26)/2*TAN(V26) -> 0 | O18: =Y26 -> 2.252300918 | P18: =AQ26 -> 2.252300918 | Q18: =BI26 -> 2.252300918 | R18: d | T18: =O18 -> 2.252300918 | U18: STEP-0：底面積（d=D） | AE18: =AF26 -> 1 | AF18: =(AE18-AF26)/2*TAN(AN26) -> 0 | AG18: =AQ26 -> 2.252300918 | AH18: d | AM18: STEP-0：底面積 | AW18: =AX26 -> 1 | AX18: =(AW18-AX26)/2*TAN(BF26) -> 0 | AY18: =BI26 -> 2.252300918 | AZ18: d | BE18: STEP-0：底面積
B19: =Y8 -> c | C19: 2.571478174 | D19: 8.981038861 | E19: =D19 -> 8.981038861 | F19: =I153 -> 0.04827732227 | G19: STEP2 …底面積A2 | M19: =P26 -> 2.3 | N19: =(M19-N26)/2*TAN(V26) -> 7.429533997 | O19: =U29 -> 1.815711868 | P19: =AM29 -> 1.815711868 | Q19: =BL34 ->  | R19: a | S19: =O18 -> 2.252300918 | T19: =O19 -> 1.815711868 | U19: STEP-1影響円Dの範囲（d≦D≦a）左右が接するまで | Z19: ☆ | AE19: =AH26 -> 2.3 | AF19: =(AE19-AF26)/2*TAN(AN26) -> 7.429533997 | AG19: =AM29 -> 1.815711868 | AH19: a | AM19: STEP-1影響円Dの範囲（d≦D≦a）左右が接するまで | AW19: =AZ26 -> 2.3 | AX19: =(AW19-AX26)/2*TAN(BF26) -> 7.429533997 | AY19: =BL34 ->  | AZ19: a | BE19: STEP-1影響円Dの範囲（d≦D≦c）上下が接するまで
B20: Dmax | C20: 2.875 | D20: 10.71567403 | E20: =D20 -> 10.71567403 | F20: =J196 -> 0 | G20: STEP3 …底面積A3 | M20: =IF(R26=M19,R26+0.00001,R26) -> 2.571478174 | N20: =(M20-N26)/2*TAN(V26) -> 8.981038861 | O20: =AB34 ->  | P20: =AT34 ->  | Q20: =BE29 -> 1.815711868 | R20: c | S20: =O20 ->  | T20: =O20 ->  | U20: STEP-2影響円Dの範囲（a≦D≦c）上下が接するまで | Z20: I26 | AA20: =INDIRECT("'"&$Z$19&"'!"&Z20) -> 2.59 | AE20: =IF(AJ26=AE19,AJ26+0.00001,AJ26) -> 2.571478174 | AF20: =(AE20-AF26)/2*TAN(AN26) -> 8.981038861 | AG20: =AT34 ->  | AH20: c | AM20: STEP-2影響円Dの範囲（a≦D≦c）上下が接するまで | AW20: =IF(BB26=AW19,BB26+0.00001,BB26) -> 2.571478174 | AX20: =(AW20-AX26)/2*TAN(BF26) -> 8.981038861 | AY20: =BE29 -> 1.815711868 | AZ20: c | BE20: STEP-2影響円Dの範囲（c≦D≦a）左右が接するまで
B21: --- | C21: --- | D21: end | M21: =P26/(COS(PI()/2-Z26)) -> 2.875 | N21: =(M21-N26)/2*TAN(V26) -> 10.71567403 | O21: =AB39 ->  | P21: =AT39 ->  | Q21: =BL39 ->  | R21: Dmax | S21: =O19 -> 1.815711868 | T21: =O21 ->  | U21: STEP-3影響円Dの範囲（c≦D≦Dmax）３つの影響円が1点で交わるまで | Z21: 採用値 | AE21: =AH26/(COS(PI()/2-AR26)) -> 2.875 | AF21: =(AE21-AF26)/2*TAN(AN26) -> 10.71567403 | AG21: =AT39 ->  | AH21: Dmax | AM21: STEP-3影響円Dの範囲（c≦D≦Dmax）３つの影響円が1点で交わるまで | AW21: =AZ26/(COS(PI()/2-BJ26)) -> 2.875 | AX21: =(AW21-AX26)/2*TAN(BF26) -> 10.71567403 | AY21: =BL39 ->  | AZ21: Dmax | BE21: STEP-3影響円Dの範囲（c≦D≦Dmax）３つの影響円が1点で交わるまで
S22: =O21 ->  | T22: =P22 -> 0 | U22: 計算範囲外 | Z22: 高さ | AA22: 面積 | AB22: step | AM22: 計算範囲外 | BE22: 計算範囲外
Z23: =INDIRECT("'"&$Z$19&"'!"&Z20) -> 2.59 | AA23: =IF(Z23=0,T5,VLOOKUP(Z23,S5:T9,2,TRUE)) -> 1.815711868 | AB23: =IF(Z23=0,U5,VLOOKUP(Z23,S5:U9,3,TRUE)) -> STEP-1：影響円D範囲(d≦D<a）
M24: STEP-0：底面積 | AE24: STEP-0：底面積 | AW24: STEP-0：底面積
G25: =U8 -> STEP-3：影響円D範囲(c≦D<Dmax） | M25: 項目 | N25: 杭径：ｄ | O25: 杭面積 | P25: 底辺：a | Q25: 高さ：b | R25: 斜辺：c | S25: 面積：ab | T25: 改良率 | U25: 塑性角：θ | V25: ラジアン | W25: 高さ：H | X25: 影響円：D | Y25: 面積A0 | Z25: α | AA25: β | AE25: 項目 | AF25: 杭径：ｄ | AG25: 杭面積 | AH25: 底辺：a | AI25: 高さ：b | AJ25: 斜辺：c | AK25: 面積：ab | AL25: 改良率 | AM25: 塑性角：θ | AN25: ラジアン | AO25: 高さ：H | AP25: 影響円：D | AQ25: 面積A0 | AR25: α | AS25: β | AW25: 項目 | AX25: 杭径：ｄ | AY25: 杭面積 | AZ25: 底辺：a | BA25: 高さ：b | BB25: 斜辺：c | BC25: 面積：ab | BD25: 改良率 | BE25: 塑性角：θ | BF25: ラジアン | BG25: 高さ：H | BH25: 影響円：D | BI25: 面積A0 | BJ25: α | BK25: β
M26: 数値 | N26: =$F$3 -> 1 | O26: =PI()*N26^2/4/2 -> 0.3926990817 | P26: =$F$4 -> 2.3 | Q26: =$F$5 -> 2.3 | R26: =SQRT(Q26^2+(P26/2)^2) -> 2.571478174 | S26: =P26*Q26/2 -> 2.645 | T26: =(O26/S26) -> 0.1484684619 | U26: =$F$13 -> 85 | V26: =RADIANS(U26) -> 1.483529864 | W26: =$Z$23 -> 2.59 | X26: =N26+2*W26/TAN(V26) -> 1.453191277 | Y26: =S26-O26 -> 2.252300918 | Z26: =PI()-AA26*2 -> 0.927295218 | AA26: =ATAN(Q26/(P26/2)) -> 1.107148718 | AE26: 数値 | AF26: =$F$3 -> 1 | AG26: =PI()*AF26^2/4/2 -> 0.3926990817 | AH26: =$F$4 -> 2.3 | AI26: =$F$5 -> 2.3 | AJ26: =SQRT(AI26^2+(AH26/2)^2) -> 2.571478174 | AK26: =AH26*AI26/2 -> 2.645 | AL26: =(AG26/AK26) -> 0.1484684619 | AM26: =$F$13 -> 85 | AN26: =RADIANS(AM26) -> 1.483529864 | AO26: =$Z$23 -> 2.59 | AP26: =AF26+2*AO26/TAN(AN26) -> 1.453191277 | AQ26: =AK26-AG26 -> 2.252300918 | AR26: =PI()-AS26*2 -> 0.927295218 | AS26: =ATAN(AI26/(AH26/2)) -> 1.107148718 | AW26: 数値 | AX26: =$F$3 -> 1 | AY26: =PI()*AX26^2/4/2 -> 0.3926990817 | AZ26: =$F$4 -> 2.3 | BA26: =$F$5 -> 2.3 | BB26: =SQRT(BA26^2+(AZ26/2)^2) -> 2.571478174 | BC26: =AZ26*BA26/2 -> 2.645 | BD26: =(AY26/BC26) -> 0.1484684619 | BE26: =$F$13 -> 85 | BF26: =RADIANS(BE26) -> 1.483529864 | BG26: =$Z$23 -> 2.59 | BH26: =AX26+2*BG26/TAN(BF26) -> 1.453191277 | BI26: =BC26-AY26 -> 2.252300918 | BJ26: =PI()-BK26*2 -> 0.927295218 | BK26: =ATAN(BA26/(AZ26/2)) -> 1.107148718
G27: =U7 -> STEP-2：影響円D範囲(a≦D<c） | M27: =U19 -> STEP-1影響円Dの範囲（d≦D≦a）左右が接するまで | AE27: =AM19 -> STEP-1影響円Dの範囲（d≦D≦a）左右が接するまで | AW27: =BE19 -> STEP-1影響円Dの範囲（d≦D≦c）上下が接するまで
M28: 斜辺：c | N28: 高さ：H | O28: 影響円：D | P28: α | Q28: β | R28: A1-1 | S28: A1-2 | T28: 2×A1-2 | U28: 面積A1 | AE28: 斜辺：c | AF28: 高さ：H | AG28: 影響円：D | AH28: α | AI28: β | AJ28: A1-1 | AK28: A1-2 | AL28: 2×A1-2 | AM28: 面積A1 | AW28: 斜辺：c | AX28: 高さ：H | AY28: 影響円：D | AZ28: α | BA28: β | BB28: A1-1 | BC28: A1-2 | BD28: 2×A1-2 | BE28: 面積A1
G29: =U6 -> STEP-1：影響円D範囲(d≦D<a） | M29: =R26 -> 2.571478174 | N29: =W26 -> 2.59 | O29: =X26 -> 1.453191277 | P29: =Z26 -> 0.927295218 | Q29: =AA26 -> 1.107148718 | R29: =P29*O29^2/8 -> 0.2447786852 | S29: =Q29*O29^2/8 -> 0.2922547235 | T29: =2*S29 -> 0.5845094469 | U29: =S26-R29-T29 -> 1.815711868 | AE29: =AJ26 -> 2.571478174 | AF29: =AO26 -> 2.59 | AG29: =AP26 -> 1.453191277 | AH29: =AR26 -> 0.927295218 | AI29: =AS26 -> 1.107148718 | AJ29: =AH29*AG29^2/8 -> 0.2447786852 | AK29: =AI29*AG29^2/8 -> 0.2922547235 | AL29: =2*AK29 -> 0.5845094469 | AM29: =AK26-AJ29-AL29 -> 1.815711868 | AW29: =BB26 -> 2.571478174 | AX29: =BG26 -> 2.59 | AY29: =BH26 -> 1.453191277 | AZ29: =BJ26 -> 0.927295218 | BA29: =BK26 -> 1.107148718 | BB29: =AZ29*AY29^2/8 -> 0.2447786852 | BC29: =BA29*AY29^2/8 -> 0.2922547235 | BD29: =2*BC29 -> 0.5845094469 | BE29: =BC26-BB29-BD29 -> 1.815711868
M30: =U20 -> STEP-2影響円Dの範囲（a≦D≦c）上下が接するまで | AE30: =AM20 -> STEP-2影響円Dの範囲（a≦D≦c）上下が接するまで | AW30: =BE20 -> STEP-2影響円Dの範囲（c≦D≦a）左右が接するまで
G31: =U5 -> STEP-0：底面積（d=D） | M31: Dmax | N31: =P25 -> 底辺：a | O31: =Q25 -> 高さ：b | P31: 斜辺：c | Q31: 高さ：H | R31: 影響円：D | S31: α | T31: β2-1 | U31: β2-2 | W31: ｈ2-1 | X31: ｈ2-2 | Y31: A2-1 | Z31: A2-2 | AA31: A2-3 | AE31: Dmax | AF31: =AH25 -> 底辺：a | AG31: =AI25 -> 高さ：b | AH31: 斜辺：c | AI31: 高さ：H | AJ31: 影響円：D | AK31: α | AL31: β2-1 | AM31: β2-2 | AO31: ｈ3-1 | AP31: ｈ2-2 | AQ31: A2-1 | AR31: A2-2 | AS31: A2-3 | AW31: Dmax | AX31: =AZ25 -> 底辺：a | AY31: =BA25 -> 高さ：b | AZ31: 斜辺：c | BA31: 高さ：H | BB31: 影響円：D | BC31: α2-1 | BD31: α2-2 | BE31: β2-1 | BG31: ｈ2-1 | BI31: A2-1 | BJ31: A2-2 | BK31: A2-3
M32: =P26/(COS(PI()/2-Z26)) -> 2.875 | N32: =P26 -> 2.3 | O32: =Q26 -> 2.3 | P32: =R26 -> 2.571478174 | Q32: =W26 -> 2.59 | R32: =X26 -> 1.453191277 | S32: =Z26 -> 0.927295218 | T32: =AA26-U32 ->  | U32: =ACOS(N32/R32) ->  | X32: =N32/2*TAN(U32) ->  | Y32: =S32*R32^2/8 -> 0.2447786852 | Z32: =T32*R32^2/8 ->  | AA32: =X32*N32/2 ->  | AE32: =AH26/(COS(PI()/2-AR26)) -> 2.875 | AF32: =AH26 -> 2.3 | AG32: =AI26 -> 2.3 | AH32: =AJ26 -> 2.571478174 | AI32: =AO26 -> 2.59 | AJ32: =AP26 -> 1.453191277 | AK32: =AR26 -> 0.927295218 | AL32: =ACOS(AF32/AJ32) ->  | AM32: =AS26-AL32 ->  | AP32: =AF32/2*TAN(AL32) ->  | AQ32: =AK32*AJ32^2/8 -> 0.2447786852 | AR32: =AM32*AJ32^2/8 ->  | AS32: =AP32*AF32/2 ->  | AW32: =AZ26/(COS(PI()/2-BJ26)) -> 2.875 | AX32: =AZ26 -> 2.3 | AY32: =BA26 -> 2.3 | AZ32: =BB26 -> 2.571478174 | BA32: =BG26 -> 2.59 | BB32: =BH26 -> 1.453191277 | BC32: =ACOS(AZ32/BB32) ->  | BD32: =BJ26-2*BC32 ->  | BE32: =BK26-BC32 ->  | BG32: =AZ32/2*TAN(BC32) ->  | BI32: =BE32*BB32^2/8 ->  | BJ32: =BD32*BB32^2/8 ->  | BK32: =BG32*AZ32/2 -> 
W33: A2-1 | X33: 2×A2-2 | Y33: A2-3 | AA33: ΣA2 | AB33: 面積A2 | AO33: A2-1 | AP33: 2×A2-2 | AQ33: A2-3 | AS33: ΣA2 | AT33: 面積A2 | BG33: 2×A2-1 | BH33: A2-2 | BI33: 2×A2-3 | BK33: ΣA2 | BL33: 面積A2
W34: =Y32 -> 0.2447786852 | X34: =Z32*2 ->  | Y34: =AA32 ->  | AA34: =SUM(W34:Y34) ->  | AB34: =S26-AA34 ->  | AO34: =AQ32 -> 0.2447786852 | AP34: =AR32*2 ->  | AQ34: =AS32 ->  | AS34: =SUM(AO34:AQ34) ->  | AT34: =AK26-AS34 ->  | BG34: =BI32*2 ->  | BH34: =BJ32 ->  | BI34: =2*BK32 ->  | BK34: =SUM(BG34:BI34) ->  | BL34: =BC26-BK34 -> 
M35: =U21 -> STEP-3影響円Dの範囲（c≦D≦Dmax）３つの影響円が1点で交わるまで | AE35: =AM21 -> STEP-3影響円Dの範囲（c≦D≦Dmax）３つの影響円が1点で交わるまで | AW35: =BE21 -> STEP-3影響円Dの範囲（c≦D≦Dmax）３つの影響円が1点で交わるまで
M36: Dmax | N36: 底辺：a | O36: 高さ：ｂ | P36: 斜辺：ｃ | Q36: 高さ：H | R36: 影響円：D | S36: α3 | T36: β3-1 | U36: β3-2 | V36: β3-3 | W36: ｈ3-1 | X36: ｈ3-2 | Y36: A3-1 | Z36: A3-2 | AA36: A3-3 | AB36: A3-4 | AE36: Dmax | AF36: 底辺：a | AG36: 高さ：ｂ | AH36: 斜辺：ｃ | AI36: 高さ：H | AJ36: 影響円：D | AK36: α3 | AL36: β3-1 | AM36: β3-2 | AN36: β3-3 | AO36: ｈ3-1 | AP36: ｈ3-2 | AQ36: A3-1 | AR36: A3-2 | AS36: A3-3 | AT36: A3-4 | AW36: Dmax | AX36: 底辺：a | AY36: 高さ：ｂ | AZ36: 斜辺：ｃ | BA36: 高さ：H | BB36: 影響円：D | BC36: α3 | BD36: β3-1 | BE36: β3-2 | BF36: β3-3 | BG36: ｈ3-1 | BH36: ｈ3-2 | BI36: A3-1 | BJ36: A3-2 | BK36: A3-3 | BL36: A3-4
M37: =P26/(COS(PI()/2-Z26)) -> 2.875 | N37: =P26 -> 2.3 | O37: =Q26 -> 2.3 | P37: =R26 -> 2.571478174 | Q37: =W26 -> 2.59 | R37: =X26 -> 1.453191277 | S37: =Z26-2*U37 ->  | T37: =ACOS(N37/R37) ->  | U37: =ACOS(P37/R37) ->  | V37: =AA26-T37-U37 ->  | W37: =P37/2*TAN(U37) ->  | X37: =N37/2*TAN(T37) ->  | Y37: =V37*R37^2/8 ->  | Z37: =S37*R37^2/8 ->  | AA37: =W37*P37/2 ->  | AB37: =X37*N37/2 ->  | AE37: =AH26/(COS(PI()/2-AR26)) -> 2.875 | AF37: =AH26 -> 2.3 | AG37: =AI26 -> 2.3 | AH37: =AJ26 -> 2.571478174 | AI37: =AO26 -> 2.59 | AJ37: =AP26 -> 1.453191277 | AK37: =AR26-2*AM37 ->  | AL37: =ACOS(AF37/AJ37) ->  | AM37: =ACOS(AH37/AJ37) ->  | AN37: =AS26-AL37-AM37 ->  | AO37: =AH37/2*TAN(AM37) ->  | AP37: =AF37/2*TAN(AL37) ->  | AQ37: =AN37*AJ37^2/8 ->  | AR37: =AK37*AJ37^2/8 ->  | AS37: =AO37*AH37/2 ->  | AT37: =AP37*AF37/2 ->  | AW37: =AZ26/(COS(PI()/2-BJ26)) -> 2.875 | AX37: =AZ26 -> 2.3 | AY37: =BA26 -> 2.3 | AZ37: =BB26 -> 2.571478174 | BA37: =BG26 -> 2.59 | BB37: =BH26 -> 1.453191277 | BC37: =BJ26-2*BE37 ->  | BD37: =ACOS(AX37/BB37) ->  | BE37: =ACOS(AZ37/BB37) ->  | BF37: =BK26-BD37-BE37 ->  | BG37: =AZ37/2*TAN(BE37) ->  | BH37: =AX37/2*TAN(BD37) ->  | BI37: =BF37*BB37^2/8 ->  | BJ37: =BC37*BB37^2/8 ->  | BK37: =BG37*AZ37/2 ->  | BL37: =BH37*AX37/2 -> 
W38: 2×A3-1 | X38: A3-2 | Y38: 2×A3-3 | Z38: A3-4 | AA38: ΣA3 | AB38: 面積A3 | AO38: 2×A3-1 | AP38: A3-2 | AQ38: 2×A3-3 | AR38: A3-4 | AS38: ΣA3 | AT38: 面積A3 | BG38: 2×A3-1 | BH38: A3-2 | BI38: 2×A3-3 | BJ38: A3-4 | BK38: ΣA3 | BL38: 面積A3
W39: =Y37*2 ->  | X39: =Z37 ->  | Y39: =2*AA37 ->  | Z39: =AB37 ->  | AA39: =SUM(W39:Z39) ->  | AB39: =S26-AA39 ->  | AO39: =AQ37*2 ->  | AP39: =AR37 ->  | AQ39: =2*AS37 ->  | AR39: =AT37 ->  | AS39: =SUM(AO39:AR39) ->  | AT39: =AK26-AS39 ->  | BG39: =BI37*2 ->  | BH39: =BJ37 ->  | BI39: =2*BK37 ->  | BJ39: =BL37 ->  | BK39: =SUM(BG39:BJ39) ->  | BL39: =BC26-BK39 -> 
A45: STEP-0：底面積
B47: 項目 | C47: 杭径：ｄ | D47: 杭面積 | E47: 長辺：a | F47: 短辺：b | G47: 斜辺：c | H47: 面積：ab/2 | I47: 改良率
B48: 数値 | C48: =F3 -> 1 | D48: =PI()*C48^2/4/2 -> 0.3926990817 | E48: =F4 -> 2.3 | F48: =F5 -> 2.3 | G48: =SQRT(F48^2+(E48/2)^2) -> 2.571478174 | H48: =E48*F48/2 -> 2.645 | I48: =(D48/H48) -> 0.1484684619
B66: 塑性角：θ | C66: ラジアン | D66: 高さ：H | E66: 影響円：D | F66: 面積A0 | G66: α | H66: β
B67: =F13 -> 85 | C67: =RADIANS(B67) -> 1.483529864 | D67: =E17 -> 0 | E67: =$C$48+2*D67/TAN($C$67) -> 1 | F67: =H48-D48 -> 2.252300918 | G67: =PI()-H67*2 -> 0.927295218 | H67: =ATAN(F48/(E48/2)) -> 1.107148718
A88: =U6 -> STEP-1：影響円D範囲(d≦D<a）
B90: 斜辺：c | C90: 高さ：H | D90: 影響円：D | E90: α | F90: β | G90: 面積：ab
B91: =G48 -> 2.571478174 | C91: =E18 -> 7.429533997 | D91: =$C$48+2*C91/TAN($C$67) -> 2.3 | E91: =G67 -> 0.927295218 | F91: =H67 -> 1.107148718 | G91: =H48 -> 2.645
B93: =A88 -> STEP-1：影響円D範囲(d≦D<a）
B109: A1-1 | C109: A1-2 | D109: 2×A1-2 | E109: 面積A1
B110: =E91*D91^2/8 -> 0.6131739629 | C110: =F91*D91^2/8 -> 0.7321020896 | D110: =2*C110 -> 1.464204179 | E110: =G91-B110-D110 -> 0.5676218578
A131: =U7 -> STEP-2：影響円D範囲(a≦D<c）
B132: 上限値
B133: =E47 -> 長辺：a | C133: =F47 -> 短辺：b | D133: 斜辺：c | E133: 高さ：H | F133: 影響円：D | G133: 面積：ab | H133: α2 | I133: β2-1 | J133: β2-2
B134: =E48 -> 2.3 | C134: =F48 -> 2.3 | D134: =G48 -> 2.571478174 | E134: =E19 -> 8.981038861 | F134: =$C$48+2*E134/TAN($C$67) -> 2.571478174 | G134: =H48 -> 2.645 | H134: =G67-2*J134 -> 0.927295218 | I134: =F91-J134 -> 1.107148718 | J134: =ACOS(D134/F134) -> 0
B136: =A131 -> STEP-2：影響円D範囲(a≦D<c）
B152: A2-1 | C152: A2-2 | D152: ｈ2 | E152: A2-3 | F152: 2×A2-1 | G152: A2-2 | H152: 2×A2-3 | I152: 面積A2
B153: =I134*F134^2/8 -> 0.9151276121 | C153: =H134*F134^2/8 -> 0.7664674536 | D153: =D134/2*TAN(J134) -> 0 | E153: =D153*D134/2 -> 0 | F153: =2*B153 -> 1.830255224 | G153: =C153 -> 0.7664674536 | H153: =2*D153 -> 0 | I153: =G134-SUM(F153:H153) -> 0.04827732227
A174: =U8 -> STEP-3：影響円D範囲(c≦D<Dmax）
B175: Dmax | C175: =B177/(COS(PI()/2-G67)) -> 2.875
B176: 長辺：a | C176: 短辺：ｂ | D176: 斜辺：ｃ | E176: 高さ：H | F176: 影響円：D | G176: α3 | H176: β3-1 | I176: β3-2 | J176: β3-3
B177: =P26 -> 2.3 | C177: =Q26 -> 2.3 | D177: =G48 -> 2.571478174 | E177: =E20 -> 10.71567403 | F177: =$C$48+2*E177/TAN($C$67) -> 2.875 | G177: =G67-2*I177 -> 0 | H177: =ACOS(B177/F177) -> 0.6435011088 | I177: =ACOS(D177/F177) -> 0.463647609 | J177: =H67-H177-I177 -> 0
B179: =A174 -> STEP-3：影響円D範囲(c≦D<Dmax）
B195: ｈ3-1 | C195: ｈ3-2 | D195: A3-1 | E195: A3-2 | F195: A3-3 | G195: A3-4 | H195: 面積：ab | I195: ΣA3 | J195: 面積A3 | M195: 2×A3-1 | N195: A3-2 | O195: 2×A3-3 | P195: A3-4 | Q195: ΣA3 | R195: 面積A3
B196: =D177/2*TAN(I177) -> 0.6428695435 | C196: =B177/2*TAN(H177) -> 0.8625 | D196: =J177*F177^2/8 -> 0 | E196: =G177*F177^2/8 -> 0 | F196: =B196*D177/2 -> 0.8265625 | G196: =C196*B177/2 -> 0.991875 | H196: =H48 -> 2.645 | I196: =SUM(M196:P196) -> 2.645 | J196: =H196-I196 -> 0 | M196: =D196*2 -> 0 | N196: =E196 -> 0 | O196: =2*F196 -> 1.653125 | P196: =G196 -> 0.991875 | Q196: =SUM(M196:P196) -> 2.645 | R196: =S167-Q196 -> -2.645
K216: ＊

Sheet 単軸四角形配置
A1: 盛土体積 計算条件 | L1: ☆ | M1: ⇦検討条件参照先
B2: 項 目 | E2: 記号 | F2: 値 | G2: 単位 | H2: 備考 | R2: ー積分計算に使用する部分ー
B3: セメント コラム 改良体 | C3: 改良体直径 | E3: ｄ | F3: =INDIRECT("'"&$L$1&"'!"&L3) -> 1 | G3: m | L3: F4 | M3: 改良体直径はd＝0.6～1.3m | T3: =VLOOKUP("〇",U12:W14,3,FALSE) -> 3
C4: 改良体間隔 (改良体中心間隔) | E4: a | F4: =INDIRECT("'"&$L$1&"'!"&L4) -> 2.3 | G4: 〃 | L4: F5 | M4: 改良体間隔はλ＝1.0～2.5m | R4: 影響円直径D | S4: その時の高さ | T4: 面積 | U4: 面積計算STEP | Y4: 影響円の範囲
E5: b | F5: =INDIRECT("'"&$L$1&"'!"&L5) -> 2.3 | G5: 〃 | L5: F6 | M5: 改良率はap＝10%以上 | T5: =T18 -> 4.504601837 | U5: =U18 -> STEP-0：底面積（d=D）
L6: F7 | Q6: 1 | R6: =SMALL($M$18:$M$22,Q6) -> 1 | S6: =SMALL($N$18:$N$22,Q6) -> 0 | T6: =VLOOKUP(R7,$M$19:$R$21,T3,FALSE) -> 3.631423736 | U6: =X6&Y6&Z6&AA6&"）" -> STEP-1：影響円D範囲(d≦D<b） | X6: STEP-1：影響円D範囲( | Y6: =R18 -> d | Z6: ≦D< | AA6: =VLOOKUP(R7,$M$19:$R$22,6,FALSE) -> b | AB6: =SMALL(OFFSET($M$18,1,$T$3,3,1),Q6) -> 
L7: F8 | Q7: 2 | R7: =SMALL($M$18:$M$22,Q7) -> 2.3 | S7: =SMALL($N$18:$N$22,Q7) -> 7.429533997 | T7: =VLOOKUP(R8,$M$19:$R$21,T3,FALSE) ->  | U7: =X7&Y7&Z7&AA7&"）" -> STEP-2：影響円D範囲(b≦D<a） | X7: STEP-2：影響円D範囲( | Y7: =AA6 -> b | Z7: ≦D< | AA7: =VLOOKUP(R8,$M$19:$R$22,6,FALSE) -> a | AB7: =SMALL(OFFSET($M$18,1,$T$3,3,1),Q7) -> 
C8: 改良率 | E8: ａp | F8: =ROUNDDOWN(S26,3) -> 0.148 | G8: - | L8: F13 | M8: 盛土高 | Q8: 3 | R8: =SMALL($M$18:$M$22,Q8) -> 2.3001 | S8: =SMALL($N$18:$N$22,Q8) -> 7.430105499 | T8: =VLOOKUP(R9,$M$19:$R$21,T3,FALSE) ->  | U8: =X8&Y8&Z8&AA8&"）" -> STEP-3：影響円D範囲(a≦D<√(a^2+b^2）） | X8: STEP-3：影響円D範囲( | Y8: =AA7 -> a | Z8: ≦D< | AA8: =VLOOKUP(R9,$M$19:$R$22,6,FALSE) -> √(a^2+b^2）
M9: 計画高 | N9: 原地盤高 | Q9: 4 | R9: =SMALL($M$18:$M$22,Q9) -> 3.252691193 | S9: =SMALL($N$18:$N$22,Q9) -> 12.87418908 | T9: 0 | U9: 計算範囲外
M10: =INDIRECT("'"&$L$1&"'!"&O10) -> 2.59 | N10: =INDIRECT("'"&$L$1&"'!"&P10) -> 0 | O10: L12 | P10: M12 | Q10: 5
B12: 盛土条件 | C12: 盛土高さ | E12: Ｈe | F12: =INDIRECT("'"&$L$1&"'!"&L8) -> 2.59 | G12: m | H12: =+IF(AND(M10="",N10=""),"","ＦH＝"&FIXED(M10,2)&"m，ＧL＝"&FIXED(N10,2)&"m") -> ＦH＝2.59m，ＧL＝0.00m | L12: F15 | M12: D15 | T12: Case1 | U12: =IF(P26<=O26,"〇","-") -> 〇 | V12: b≦a | W12: 3
B13: 塑性角 | C13: 改良形式： | D13: =INDIRECT("'"&$L$1&"'!"&M12) -> 浮き型 | E13: θ | F13: =INDIRECT("'"&$L$1&"'!"&L12) -> 85 | G13: 度 | M13: D16 | T13: Case2 | U13: =IF(AND(P26>O26),"〇","-") -> - | V13: a<b | W13: 4
C14: 補助工法： | D14: =INDIRECT("'"&$L$1&"'!"&M13) -> 浅層改良 | F14: =INDIRECT("'"&$L$1&"'!"&M13) -> 浅層改良 | T14: Case3 | U14: - | V14: --- | W14: 5
M15: Case1：b≦aの場合 | O15: 3 | P15: 4 | Q15: 5 | AE15: Case1：a<bの場合 | AG15: 3 | AH15: 4 | AI15: 5
B16: 影響円D | C16: 影響円直径D | D16: その時の高さ | E16: 高さ:計算例 | F16: 面積:計算例 | G16: 概要 | N16: その時の高さ | O16: 面積 | R16: 影響円直径D | AF16: その時の高さ | AG16: 面積 | AJ16: 影響円直径D
B17: =Y6 -> d | C17: =R6 -> 1 | D17: 0 | E17: 0 | F17: =F67 -> 4.504601837 | G17: STEP0 …底面積A0 | O17: case1 | P17: Case2 | Q17: case3 | AG17: Case2
B18: =Y7 -> b | C18: 2.3 | D18: 7.429533997 | E18: =D18 -> 7.429533997 | F18: =C110 -> 1.135243716 | G18: STEP1 …底面積A1 | M18: =N26 -> 1 | N18: =(M18-N26)/2*TAN(U26) -> 0 | O18: =X26 -> 4.504601837 | P18: =AP26 -> 4.504601837 | R18: d | T18: =O18 -> 4.504601837 | U18: STEP-0：底面積（d=D） | AE18: =AF26 -> 1 | AF18: =(AE18-AF26)/2*TAN(AM26) -> 0 | AG18: =AP26 -> 4.504601837 | AJ18: d | AL18: =P18 -> 4.504601837 | AM18: STEP-0：底面積
B19: =Y8 -> a | C19: 2.3001 | D19: 7.430105499 | E19: =D19 -> 7.430105499 | F19: =G153 -> 1.134883854 | G19: STEP2 …底面積A2 | M19: =P26 -> 2.3 | N19: =(M19-N26)/2*TAN(U26) -> 7.429533997 | O19: =Q29 -> 3.631423736 | P19: =AP32 ->  | R19: b | S19: =N18 -> 0 | T19: =O19 -> 3.631423736 | U19: STEP-1：上下（短辺b）が接するまで | Z19: ☆ | AE19: =AH26 -> 2.3 | AF19: =(AE19-AF26)/2*TAN(AM26) -> 7.429533997 | AG19: =AP32 ->  | AJ19: b | AK19: =AF18 -> 0 | AL19: =P19 ->  | AM19: STEP-1：左右（短辺a）が接するまで
B20: √(a2+b2） | C20: 3.252691193 | D20: 12.87418908 | E20: =D20 -> 12.87418908 | F20: =J196 -> 8.881784197e-16 | G20: STEP3 …底面積A3 | M20: =IF(O26=P26,O26+0.0001,O26) -> 2.3001 | N20: =(M20-N26)/2*TAN(U26) -> 7.430105499 | O20: =X32 ->  | P20: =AI29 -> 3.631423736 | R20: a | S20: =N19 -> 7.429533997 | T20: =O20 ->  | U20: STEP-2：左右（長辺a）が接するまで | Z20: I26 | AA20: =INDIRECT("'"&$Z$19&"'!"&Z20) -> 2.59 | AE20: =IF(AG26=AH26,AG26+0.0001,AG26) -> 2.3001 | AF20: =(AE20-AF26)/2*TAN(AM26) -> 7.430105499 | AG20: =AI29 -> 3.631423736 | AJ20: a | AK20: =AF19 -> 7.429533997 | AL20: =P20 -> 3.631423736 | AM20: STEP-2：上下（長辺b）が接するまで
B21: --- | C21: --- | D21: end | M21: =SQRT(O26^2+P26^2) -> 3.252691193 | N21: =(M21-N26)/2*TAN(U26) -> 12.87418908 | O21: =AC35 ->  | P21: =AU35 ->  | R21: √(a^2+b^2） | S21: =N20 -> 7.430105499 | T21: =O21 ->  | U21: STEP-3：対角が接するまで | Z21: 採用値 | AE21: =SQRT(AG26^2+AH26^2) -> 3.252691193 | AF21: =(AE21-AF26)/2*TAN(AM26) -> 12.87418908 | AG21: =AU35 ->  | AJ21: √(a2+b2） | AK21: =AF20 -> 7.430105499 | AL21: =P21 ->  | AM21: STEP-3：対角が接するまで
S22: =N21 -> 12.87418908 | T22: =R22 -> 0 | U22: 計算範囲外 | Z22: 高さ | AA22: 面積 | AB22: step | AK22: =AF21 -> 12.87418908 | AL22: =AJ22 -> 0 | AM22: 計算範囲外
Z23: =INDIRECT("'"&$Z$19&"'!"&Z20) -> 2.59 | AA23: =IF(Z23=0,T5,VLOOKUP(Z23,S5:T9,2,TRUE)) -> 3.631423736 | AB23: =IF(Z23=0,U5,VLOOKUP(Z23,S5:U9,3,TRUE)) -> STEP-1：影響円D範囲(d≦D<b）
M24: =U18 -> STEP-0：底面積（d=D） | AE24: =AM18 -> STEP-0：底面積
G25: =U8 -> STEP-3：影響円D範囲(a≦D<√(a^2+b^2）） | M25: 項目 | N25: 杭径：ｄ | O25: 縦辺：a | P25: 横辺：b | Q25: 面積 | R25: 面積：ab | S25: 改良率 | T25: 塑性角：θ | U25: ラジアン | V25: 高さ：H | W25: 影響円：D | X25: 面積A0 | AE25: 項目 | AF25: 杭径：ｄ | AG25: 縦辺：a | AH25: 横辺：b | AI25: 面積 | AJ25: 面積：ab | AK25: 改良率 | AL25: 塑性角：θ | AM25: ラジアン | AN25: 高さ：H | AO25: 影響円：D | AP25: 面積A0
M26: 数値 | N26: =$F$3 -> 1 | O26: =$F$4 -> 2.3 | P26: =$F$5 -> 2.3 | Q26: =PI()*N26^2/4 -> 0.7853981634 | R26: =O26*P26 -> 5.29 | S26: =(Q26/R26) -> 0.1484684619 | T26: =$F$13 -> 85 | U26: =RADIANS(T26) -> 1.483529864 | V26: =$Z$23 -> 2.59 | W26: =N26+2*V26/TAN(U26) -> 1.453191277 | X26: =R26-Q26 -> 4.504601837 | AE26: 数値 | AF26: =$F$3 -> 1 | AG26: =$F$4 -> 2.3 | AH26: =$F$5 -> 2.3 | AI26: =PI()*AF26^2/4 -> 0.7853981634 | AJ26: =AG26*AH26 -> 5.29 | AK26: =(AI26/AJ26) -> 0.1484684619 | AL26: =$F$13 -> 85 | AM26: =RADIANS(AL26) -> 1.483529864 | AN26: =$Z$23 -> 2.59 | AO26: =AF26+2*AN26/TAN(AM26) -> 1.453191277 | AP26: =AJ26-AI26 -> 4.504601837
G27: =U7 -> STEP-2：影響円D範囲(b≦D<a） | M27: =U19 -> STEP-1：上下（短辺b）が接するまで | AE27: =AM19 -> STEP-1：左右（短辺a）が接するまで
M28: =P25 -> 横辺：b | N28: 高さ：H | O28: 影響円：D | P28: 4×A1-1 | Q28: 面積A1 | AE28: =AG25 -> 縦辺：a | AF28: 高さ：H | AG28: 影響円：D | AH28: 4×A1-1 | AI28: 面積A1
G29: =U6 -> STEP-1：影響円D範囲(d≦D<b） | M29: =P26 -> 2.3 | N29: =V26 -> 2.59 | O29: =W26 -> 1.453191277 | P29: =PI()*O29^2/4 -> 1.658576264 | Q29: =R26-P29 -> 3.631423736 | AE29: =AG26 -> 2.3 | AF29: =AN26 -> 2.59 | AG29: =AO26 -> 1.453191277 | AH29: =PI()*AG29^2/4 -> 1.658576264 | AI29: =AJ26-AH29 -> 3.631423736
M30: =U20 -> STEP-2：左右（長辺a）が接するまで | AE30: =AM20 -> STEP-2：上下（長辺b）が接するまで
G31: =U5 -> STEP-0：底面積（d=D） | M31: =O25 -> 縦辺：a | N31: =P25 -> 横辺：b | O31: 高さ：H | P31: 影響円：D | Q31: α | R31: α' | S31: ｈ1 | T31: A2-1 | U31: A2-2 | V31: 2×A2-1 | W31: 4×A2-2 | X31: 面積A2 | AE31: =AG25 -> 縦辺：a | AF31: =AH25 -> 横辺：b | AG31: 高さ：H | AH31: 影響円：D | AI31: α | AJ31: α' | AK31: ｈ1 | AL31: A2-1 | AM31: A2-2 | AN31: 2×A2-1 | AO31: 4×A2-2 | AP31: 面積A2
M32: =O26 -> 2.3 | N32: =P26 -> 2.3 | O32: =V26 -> 2.59 | P32: =W26 -> 1.453191277 | Q32: =ACOS(N32/P32) ->  | R32: =PI()/2-Q32 ->  | S32: =N32/2*TAN(Q32) ->  | T32: =1/2*S32*N32 ->  | U32: =R32*P32^2/8 ->  | V32: =2*T32 ->  | W32: =4*U32 ->  | X32: =R26-(V32+W32) ->  | AE32: =AG26 -> 2.3 | AF32: =AH26 -> 2.3 | AG32: =AN26 -> 2.59 | AH32: =AO26 -> 1.453191277 | AI32: =ACOS(AE32/AH32) ->  | AJ32: =PI()/2-AI32 ->  | AK32: =AE32/2*TAN(AI32) ->  | AL32: =1/2*AK32*AE32 ->  | AM32: =AJ32*AH32^2/8 ->  | AN32: =2*AL32 ->  | AO32: =4*AM32 ->  | AP32: =AJ26-(AN32+AO32) -> 
M33: =U21 -> STEP-3：対角が接するまで | AE33: =AM21 -> STEP-3：対角が接するまで
M34: √(a2+b2） | N34: =O25 -> 縦辺：a | O34: =P25 -> 横辺：b | P34: 高さ：H | Q34: 影響円：D | R34: α | S34: β | T34: γ | U34: ｈ1 | V34: ｈ2 | W34: A3-1 | X34: A3-2 | Y34: A3-3 | Z34: 2×A3-1 | AA34: 2×A3-2 | AB34: 4×A3-3 | AC34: 面積A3 | AE34: √(a2+b2） | AF34: =AG25 -> 縦辺：a | AG34: =AH25 -> 横辺：b | AH34: 高さ：H | AI34: 影響円：D | AJ34: α | AK34: β | AL34: γ | AM34: ｈ1 | AN34: ｈ2 | AO34: A3-1 | AP34: A3-2 | AQ34: A3-3 | AR34: 2×A3-1 | AS34: 2×A3-2 | AT34: 4×A3-3 | AU34: 面積A3
M35: =SQRT(N35^2+O35^2) -> 3.252691193 | N35: =D48 -> 2.3 | O35: =E48 -> 2.3 | P35: =D67 -> 0 | Q35: =W26 -> 1.453191277 | R35: =ACOS(O35/Q35) ->  | S35: =ACOS(N35/Q35) ->  | T35: =PI()/2-R35-S35 ->  | U35: =O35/2*TAN(R35) ->  | V35: =N35/2*TAN(S35) ->  | W35: =O35*U35/2 ->  | X35: =V35*N35/2 ->  | Y35: =T35*Q35^2/8 ->  | Z35: =W35*2 ->  | AA35: =X35*2 ->  | AB35: =4*Y35 ->  | AC35: =G48-Z35-AA35-AB35 ->  | AE35: =SQRT(AF35^2+AG35^2) -> 3.252691193 | AF35: =AG26 -> 2.3 | AG35: =AH26 -> 2.3 | AH35: =AN26 -> 2.59 | AI35: =AO26 -> 1.453191277 | AJ35: =ACOS(AG35/AI35) ->  | AK35: =ACOS(AF35/AI35) ->  | AL35: =PI()/2-AJ35-AK35 ->  | AM35: =AG35/2*TAN(AJ35) ->  | AN35: =AF35/2*TAN(AK35) ->  | AO35: =AG35*AM35/2 ->  | AP35: =AN35*AF35/2 ->  | AQ35: =AL35*AI35^2/8 ->  | AR35: =AO35*2 ->  | AS35: =AP35*2 ->  | AT35: =4*AQ35 ->  | AU35: =AJ26-AR35-AS35-AT35 -> 
A45: =U5 -> STEP-0：底面積（d=D）
B47: 項目 | C47: 杭径：ｄ | D47: 長辺：a | E47: 短辺：b | F47: 面積 | G47: 面積：ab | H47: 改良率
B48: 数値 | C48: =F3 -> 1 | D48: =F4 -> 2.3 | E48: =F5 -> 2.3 | F48: =PI()*C48^2/4 -> 0.7853981634 | G48: =D48*E48 -> 5.29 | H48: =(F48/G48) -> 0.1484684619
B50: =A45 -> STEP-0：底面積（d=D）
B66: 塑性角：θ | C66: ラジアン | D66: 高さ：H | E66: 影響円：D | F66: 面積A0
B67: =F13 -> 85 | C67: =RADIANS(B67) -> 1.483529864 | D67: =E17 -> 0 | E67: =$C$48+2*D67/TAN($C$67) -> 1 | F67: =G48-F48 -> 4.504601837
A88: =U6 -> STEP-1：影響円D範囲(d≦D<b）
B90: =E47 -> 短辺：b | C90: 高さ：H | D90: 影響円：D
B91: =E48 -> 2.3 | C91: =E18 -> 7.429533997 | D91: =$C$48+2*C91/TAN($C$67) -> 2.3
B93: =A88 -> STEP-1：影響円D範囲(d≦D<b）
B109: 4×A1-1 | C109: 面積A1
B110: =PI()*D91^2/4 -> 4.154756284 | C110: =G48-B110 -> 1.135243716
A131: =U7 -> STEP-2：影響円D範囲(b≦D<a）
B132: 上限値
B133: =D47 -> 長辺：a | C133: =E47 -> 短辺：b | D133: 高さ：H | E133: 影響円：D | F133: α | G133: α'
B134: =D48 -> 2.3 | C134: =E48 -> 2.3 | D134: =E19 -> 7.430105499 | E134: =$C$48+2*D134/TAN($C$67) -> 2.3001 | F134: =ACOS(C134/E134) -> 0.009324879155 | G134: =PI()/2-F134 -> 1.561471448
B136: =A131 -> STEP-2：影響円D範囲(b≦D<a）
B152: ｈ1 | C152: A2-1 | D152: A2-2 | E152: 2×A2-1 | F152: 4×A2-2 | G152: 面積A2
B153: =C134/2*TAN(F134) -> 0.01072392186 | C153: =1/2*B153*C134 -> 0.01233251014 | D153: =G134*E134^2/8 -> 1.032612781 | E153: =2*C153 -> 0.02466502027 | F153: =4*D153 -> 4.130451125 | G153: =G48-(E153+F153) -> 1.134883854
A174: =U8 -> STEP-3：影響円D範囲(a≦D<√(a^2+b^2））
B175: 上限値
B176: √(a2+b2） | C176: 長辺：a | D176: 短辺：ｂ | E176: 高さ：H | F176: 影響円：D | G176: α | H176: β | I176: γ
B177: =SQRT(C177^2+D177^2) -> 3.252691193 | C177: =O26 -> 2.3 | D177: =P26 -> 2.3 | E177: =E20 -> 12.87418908 | F177: =$C$48+2*E177/TAN($C$67) -> 3.252691193 | G177: =ACOS(D177/F177) -> 0.7853981634 | H177: =ACOS(C177/F177) -> 0.7853981634 | I177: =PI()/2-G177-H177 -> 0
B179: =A174 -> STEP-3：影響円D範囲(a≦D<√(a^2+b^2））
B195: ｈ1 | C195: ｈ2 | D195: A3-1 | E195: A3-2 | F195: A3-3 | G195: 2×A3-1 | H195: 2×A3-2 | I195: 4×A3-3 | J195: 面積A3
B196: =D177/2*TAN(G177) -> 1.15 | C196: =C177/2*TAN(H177) -> 1.15 | D196: =D177*B196/2 -> 1.3225 | E196: =C196*C177/2 -> 1.3225 | F196: =I177*F177^2/8 -> 0 | G196: =D196*2 -> 2.645 | H196: =E196*2 -> 2.645 | I196: =4*F196 -> 0 | J196: =R26-G196-H196-I196 -> 8.881784197e-16
K216: ＊

Sheet 二軸四角配置
A1: 盛土体積 計算条件 | L1: ☆ | M1: ⇦検討条件参照先
B2: 項 目 | E2: 記号 | F2: 値 | G2: 単位 | H2: 備考 | R2: ー積分計算に使用する部分ー
B3: セメント コラム 改良体 | C3: 改良体直径 | E3: ｄ | F3: =INDIRECT("'"&$L$1&"'!"&L3) -> 1 | G3: m | L3: F4 | M3: 改良体直径はd＝0.6～1.3m | T3: =VLOOKUP("〇",U12:W14,3,FALSE) -> 3
C4: 改良体間隔 (改良体中心間隔) | E4: a | F4: =INDIRECT("'"&$L$1&"'!"&L4) -> 2.3 | G4: 〃 | L4: F5 | M4: 改良体間隔はλ＝1.0～2.5m | R4: 影響円直径D | S4: その時の高さ | T4: 面積 | U4: 面積計算STEP | Y4: 影響円の範囲
E5: b | F5: =INDIRECT("'"&$L$1&"'!"&L5) -> 2.3 | G5: 〃 | L5: F6 | M5: 改良率はap＝10%以上 | T5: =T18 -> 6.019203673 | U5: =U18 -> STEP-0：底面積（d=D）
C6: 分担面 横：L | E6: L | F6: =INDIRECT("'"&$L$1&"'!"&L6) ->  | G6: 〃 | L6: F7 | Q6: 1 | R6: =SMALL($M$18:$M$22,Q6) -> 1 | S6: =SMALL($N$18:$N$22,Q6) -> 0 | T6: =VLOOKUP(R7,$M$19:$R$22,T3,FALSE) -> 4.602888575 | U6: =X6&Y6&Z6&AA6&"）" -> STEP-1：影響円D範囲(d≦D<b） | X6: STEP-1：影響円D範囲( | Y6: =R18 -> d | Z6: ≦D< | AA6: =VLOOKUP(R7,$M$19:$R$22,6,FALSE) -> b
C7: 分担面 縦：h | E7: h | F7: =INDIRECT("'"&$L$1&"'!"&L7) -> 0 | G7: 〃 | L7: F8 | Q7: 2 | R7: =SMALL($M$18:$M$22,Q7) -> 2.3 | S7: =SMALL($N$18:$N$22,Q7) -> 7.429533997 | T7: =VLOOKUP(R8,$M$19:$R$22,T3,FALSE) ->  | U7: =X7&Y7&Z7&AA7&"）" -> STEP-2：影響円D範囲(b≦D<a） | X7: STEP-2：影響円D範囲( | Y7: =AA6 -> b | Z7: ≦D< | AA7: =VLOOKUP(R8,$M$19:$R$22,6,FALSE) -> a
C8: 改良率 | E8: ａp | F8: =ROUNDDOWN(T26,3) ->  | G8: - | L8: F13 | M8: 盛土高 | Q8: 3 | R8: =SMALL($M$18:$M$22,Q8) -> 2.3001 | S8: =SMALL($N$18:$N$22,Q8) -> 7.430105499 | T8: =VLOOKUP(R9,$M$19:$R$22,T3,FALSE) ->  | U8: =X8&Y8&Z8&AA8&"）" -> STEP-3：影響円D範囲(a≦D<k） | X8: STEP-3：影響円D範囲( | Y8: =AA7 -> a | Z8: ≦D< | AA8: =VLOOKUP(R9,$M$19:$R$22,6,FALSE) -> k
M9: 計画高 | N9: 原地盤高 | Q9: 4 | R9: =SMALL($M$18:$M$22,Q9) -> 2.507987241 | S9: =SMALL($N$18:$N$22,Q9) -> 8.618186517 | T9: =VLOOKUP(R10,$M$19:$R$22,T3,FALSE) ->  | U9: =X9&Y9&Z9&AA9&"）" -> STEP-4：影響円D範囲(k≦D≦max） | X9: STEP-4：影響円D範囲( | Y9: =AA8 -> k | Z9: ≦D≦ | AA9: =R22 -> max
M10: =INDIRECT("'"&$L$1&"'!"&O10) -> 2.59 | N10: =INDIRECT("'"&$L$1&"'!"&P10) -> 0 | O10: L12 | P10: M12 | Q10: 5 | R10: =SMALL($M$18:$M$22,Q10) -> 3.252691193 | S10: =SMALL($N$18:$N$22,Q10) -> 12.87418908 | T10: 0 | U10: 計算範囲外 | Y10: =AA9 -> max
B12: 盛土条件 | C12: 盛土高さ | E12: Ｈe | F12: =INDIRECT("'"&$L$1&"'!"&L8) -> 2.59 | G12: m | H12: =+IF(AND(M10="",N10=""),"","ＦH＝"&FIXED(M10,2)&"m，ＧL＝"&FIXED(N10,2)&"m") -> ＦH＝2.59m，ＧL＝0.00m | L12: F15 | M12: D15 | T12: Case1 | U12: =IF(P26>=Q26,"〇","-") -> 〇 | V12: b≦a | W12: 3
B13: 塑性角 | C13: 改良形式： | D13: =INDIRECT("'"&$L$1&"'!"&M12) -> 浮き型 | E13: θ | F13: =INDIRECT("'"&$L$1&"'!"&L12) -> 85 | G13: 度 | M13: D16 | T13: Case2 | U13: =IF(AND(P26<Q26,Y26>=Q26),"〇","-") -> - | V13: a<b≦k | W13: 4
C14: 補助工法： | D14: =INDIRECT("'"&$L$1&"'!"&M13) -> 浅層改良 | F14: =INDIRECT("'"&$L$1&"'!"&M13) -> 浅層改良 | T14: Case3 | U14: =IF(Y26<Q26,"〇","-") -> - | V14: k<b | W14: 5
M15: Case1：b≦aの場合 | O15: 3 | P15: 4 | Q15: 5 | AE15: Case2：a<b≦kの場合 | AW15: Case3：k<bの場合
B16: 影響円D | C16: 影響円直径D | D16: その時の高さ | E16: 高さ:計算例 | F16: 面積:計算例 | G16: 概要 | M16: 影響円直径D | N16: その時の高さ | O16: 面積 | R16: 影響円D | AE16: 影響円直径D | AF16: その時の高さ | AG16: 面積 | AJ16: 影響円D | AW16: 影響円直径D | AX16: その時の高さ | AY16: 面積 | AZ16: 影響円D
B17: =Y6 -> d | C17: =R6 -> 1 | D17: 0 | E17: 1.2 | F17: =J67 -> 6.019203673 | G17: STEP0 …底面積A0 | O17: case1 | P17: Case2 | Q17: Case3
B18: =Y7 -> b | C18: 2.3 | D18: 7.429533997 | E18: =D18 -> 7.429533997 | F18: =G110 -> 1.209915261 | G18: STEP1 …底面積A1 | M18: =N26 -> 1 | N18: =(M18-N26)/2*TAN(V26) -> 0 | O18: =AC26 -> 6.019203673 | P18: =AU26 -> 6.019203673 | Q18: =BM26 -> 6.019203673 | R18: d | T18: =O18 -> 6.019203673 | U18: STEP-0：底面積（d=D） | AE18: =AF26 -> 1 | AF18: =(AE18-AF26)/2*TAN(AN26) -> 0 | AG18: =AU26 -> 6.019203673 | AJ18: d | AM18: STEP-0：底面積 | AW18: =AX26 -> 1 | AX18: =(AW18-AX26)/2*TAN(BF26) -> 0 | AY18: =BM26 -> 6.019203673 | AZ18: d | BC18: STEP-0：底面積
B19: =Y8 -> a | C19: 2.3001 | D19: 7.430105499 | E19: =K19 -> 0 | F19: =I155 ->  | G19: STEP2…底面積A2 | M19: =Q26 -> 2.3 | N19: =(M19-N26)/2*TAN(V26) -> 7.429533997 | O19: =Z29 -> 4.602888575 | P19: =AT34 ->  | Q19: =BL39 ->  | R19: b | S19: =N18 -> 0 | T19: =O20 ->  | U19: STEP-1影響円Dの範囲（d≦D≦b）左右が接するまで | Z19: ☆ | AE19: =AH26 -> 2.3 | AF19: =(AE19-AF26)/2*TAN(AN26) -> 7.429533997 | AG19: =AR29 -> 4.602888575 | AJ19: a | AM19: STEP-1影響円Dの範囲（d≦D≦a）上下が接するまで | AW19: =AZ26 -> 2.3 | AX19: =(AW19-AX26)/2*TAN(BF26) -> 7.429533997 | AY19: =BJ29 -> 4.602888575 | AZ19: a | BC19: STEP-1影響円Dの範囲（d≦D≦a）上下が接するまで
B20: =Y9 -> k | C20: 2.507987241 | D20: 8.618186517 | E20: =D20 -> 8.618186517 | F20: =I196 -> 0.4896960382 | G20: STEP3 …底面積A3 | M20: =IF(P26=Q26,P26+0.0001,P26) -> 2.3001 | N20: =(M20-N26)/2*TAN(V26) -> 7.430105499 | O20: =AB34 ->  | P20: =AR29 -> 4.602888575 | Q20: =BJ29 -> 4.602888575 | R20: a | S20: =N20 -> 7.430105499 | T20: =O21 ->  | U20: STEP-2影響円Dの範囲（b≦D≦a）上下が接するまで | Z20: I26 | AA20: =INDIRECT("'"&$Z$19&"'!"&Z20) -> 2.59 | AE20: =IF(AH26=AI26,AH26+0.0001,AH26) -> 2.3001 | AF20: =(AE20-AF26)/2*TAN(AN26) -> 7.430105499 | AG20: =AT34 ->  | AJ20: b | AM20: STEP-2影響円Dの範囲（a≦D≦b）左右が接するまで | AW20: =SQRT((AZ26^2+AX26^2)) -> 2.507987241 | AX20: =(AW20-AX26)/2*TAN(BF26) -> 8.618186517 | AY20: =BL34 ->  | AZ20: k=√(a2+d2） | BC20: STEP-2影響円Dの範囲（a≦D≦bk）左右が接するまで
B21: =Y10 -> max | C21: 3.252691193 | D21: 12.87418908 | E21: =K21 -> 0 | F21: =G239 ->  | G21: STEP4 …底面積A4 | M21: =SQRT((P26^2+N26^2)) -> 2.507987241 | N21: =(M21-N26)/2*TAN(V26) -> 8.618186517 | O21: =AB39 ->  | P21: =AT39 ->  | Q21: =BL34 ->  | R21: k | S21: =N21 -> 8.618186517 | T21: =O19 -> 4.602888575 | U21: STEP-3影響円Dの範囲（a≦D≦k） | Z21: 採用値 | AE21: =SQRT((AH26^2+AF26^2)) -> 2.507987241 | AF21: =(AE21-AF26)/2*TAN(AN26) -> 8.618186517 | AG21: =AT39 ->  | AJ21: k=√(a2+d2） | AM21: STEP-3影響円Dの範囲（a≦D≦k） | AW21: =BA26 -> 2.3 | AX21: =(AW21-AX26)/2*TAN(BF26) -> 7.429533997 | AY21: =BL39 ->  | AZ21: b | BC21: STEP-3影響円Dの範囲（k≦D≦b）
M22: =SQRT((P26^2+Q26^2)) -> 3.252691193 | N22: =(M22-N26)/2*TAN(V26) -> 12.87418908 | O22: =AB44 ->  | P22: =AT44 ->  | Q22: =BL44 ->  | R22: max | S22: =N19 -> 7.429533997 | T22: =O22 ->  | U22: STEP-4影響円Dの範囲（k≦D≦max）対角が接するまで | Z22: 高さ | AA22: 面積 | AB22: step | AE22: =SQRT((AH26^2+AI26^2)) -> 3.252691193 | AF22: =(AE22-AF26)/2*TAN(AN26) -> 12.87418908 | AG22: =AT44 ->  | AJ22: max=√(a2+b2） | AM22: STEP-4影響円Dの範囲（k≦D≦max）対角が接するまで | AW22: =SQRT((AZ26^2+BA26^2)) -> 3.252691193 | AX22: =(AW22-AX26)/2*TAN(BF26) -> 12.87418908 | AY22: =BL44 ->  | AZ22: max=√(a2+b2） | BC22: STEP-4影響円Dの範囲（b≦D≦max）対角が接するまで
S23: =N22 -> 12.87418908 | T23: 0 | U23: 計算範囲外 | Z23: =INDIRECT("'"&$Z$19&"'!"&Z20) -> 2.59 | AA23: =IF(Z23=0,T5,VLOOKUP(Z23,S5:T10,2,TRUE)) -> 4.602888575 | AB23: =IF(Z23=0,U5,VLOOKUP(Z23,S5:U10,3,TRUE)) -> STEP-1：影響円D範囲(d≦D<b） | AM23: 計算範囲外 | BC23: 計算範囲外
M24: STEP-0：底面積 | AE24: STEP-0：底面積 | AW24: STEP-0：底面積
G25: =U9 -> STEP-4：影響円D範囲(k≦D≦max） | M25: 項目 | N25: 杭径：ｄ | O25: 杭面積 | P25: 縦辺：a | Q25: 横辺：b | R25: 分担面：L | S25: 面積：aL | T25: 改良率 | U25: 塑性角：θ | V25: ラジアン | W25: 高さ：H | X25: 影響円：D | Y25: k | Z25: max | AA25: 面積A0-1 | AB25: 面積2A0-2 | AC25: 面積A0 | AE25: 項目 | AF25: 杭径：ｄ | AG25: 杭面積 | AH25: 縦辺：a | AI25: 横辺：b | AJ25: 分担面：L | AK25: 面積：aL | AL25: 改良率 | AM25: 塑性角：θ | AN25: ラジアン | AO25: 高さ：H | AP25: 影響円：D | AQ25: k | AR25: max | AS25: 面積A0-1 | AT25: 面積2A0-2 | AU25: 面積A0 | AW25: 項目 | AX25: 杭径：ｄ | AY25: 杭面積 | AZ25: 縦辺：a | BA25: 横辺：b | BB25: 分担面：L | BC25: 面積：aL | BD25: 改良率 | BE25: 塑性角：θ | BF25: ラジアン | BG25: 高さ：H | BH25: 影響円：D | BI25: k | BJ25: max | BK25: 面積A0-1 | BL25: 面積2A0-2 | BM25: 面積A0
M26: 数値 | N26: =$F$3 -> 1 | O26: =PI()*N26^2/4 -> 0.7853981634 | P26: =$F$4 -> 2.3 | Q26: =$F$5 -> 2.3 | R26: =$F$6 ->  | S26: =P26*R26 ->  | T26: =(O26*2/S26) ->  | U26: =$F$13 -> 85 | V26: =RADIANS(U26) -> 1.483529864 | W26: =$Z$23 -> 2.59 | X26: =N26+2*W26/TAN(V26) -> 1.453191277 | Y26: =SQRT((N26^2+P26^2)) -> 2.507987241 | Z26: =SQRT((P26^2+Q26^2)) -> 3.252691193 | AA26: =P26*Q26-O26 -> 4.504601837 | AB26: =N26*P26-O26 -> 1.514601837 | AC26: =AA26+AB26 -> 6.019203673 | AE26: 数値 | AF26: =$F$3 -> 1 | AG26: =PI()*AF26^2/4 -> 0.7853981634 | AH26: =$F$4 -> 2.3 | AI26: =$F$5 -> 2.3 | AJ26: =$F$6 ->  | AK26: =AH26*AJ26 ->  | AL26: =(AG26*2/AK26) ->  | AM26: =$F$13 -> 85 | AN26: =RADIANS(AM26) -> 1.483529864 | AO26: =$Z$23 -> 2.59 | AP26: =AF26+2*AO26/TAN(AN26) -> 1.453191277 | AQ26: =SQRT((AF26^2+AH26^2)) -> 2.507987241 | AR26: =SQRT((AH26^2+AI26^2)) -> 3.252691193 | AS26: =AH26*AI26-AG26 -> 4.504601837 | AT26: =AF26*AH26-AG26 -> 1.514601837 | AU26: =AS26+AT26 -> 6.019203673 | AW26: 数値 | AX26: =$F$3 -> 1 | AY26: =PI()*AX26^2/4 -> 0.7853981634 | AZ26: =$F$4 -> 2.3 | BA26: =$F$5 -> 2.3 | BB26: =$F$6 ->  | BC26: =AZ26*BB26 ->  | BD26: =(AY26*2/BC26) ->  | BE26: =$F$13 -> 85 | BF26: =RADIANS(BE26) -> 1.483529864 | BG26: =$Z$23 -> 2.59 | BH26: =AX26+2*BG26/TAN(BF26) -> 1.453191277 | BI26: =SQRT((AX26^2+AZ26^2)) -> 2.507987241 | BJ26: =SQRT((AZ26^2+BA26^2)) -> 3.252691193 | BK26: =AZ26*BA26-AY26 -> 4.504601837 | BL26: =AX26*AZ26-AY26 -> 1.514601837 | BM26: =BK26+BL26 -> 6.019203673
G27: =U8 -> STEP-3：影響円D範囲(a≦D<k） | M27: =U19 -> STEP-1影響円Dの範囲（d≦D≦b）左右が接するまで | AE27: =AM19 -> STEP-1影響円Dの範囲（d≦D≦a）上下が接するまで | AW27: =BC19 -> STEP-1影響円Dの範囲（d≦D≦a）上下が接するまで
M28: 杭径：ｄ | N28: =P25 -> 縦辺：a | O28: =Q25 -> 横辺：b | P28: 高さ：H | Q28: 影響円：D | R28: 角度:δ121 | S28: 角度:δ122 | T28: 高さ:h12 | U28: 面積:A121 | V28: 面積:A122 | W28: A1-1 | X28: A1-2 | Y28: 2×A1-2 | Z28: 面積A1 | AE28: 杭径：ｄ | AF28: =AH25 -> 縦辺：a | AG28: =AI25 -> 横辺：b | AH28: 高さ：H | AI28: 影響円：D | AJ28: 角度:δ121 | AK28: 角度:δ122 | AL28: 高さ:h12 | AM28: 面積:A121 | AN28: 面積:A122 | AO28: A1-1 | AP28: A1-2 | AQ28: 2×A1-2 | AR28: 面積A1 | AW28: 杭径：ｄ | AX28: =AZ25 -> 縦辺：a | AY28: =BA25 -> 横辺：b | AZ28: 高さ：H | BA28: 影響円：D | BB28: 角度:δ121 | BC28: 角度:δ122 | BD28: 高さ:h12 | BE28: 面積:A121 | BF28: 面積:A122 | BG28: A1-1 | BH28: A1-2 | BI28: 2×A1-2 | BJ28: 面積A1
G29: =U7 -> STEP-2：影響円D範囲(b≦D<a） | M29: =N26 -> 1 | N29: =P26 -> 2.3 | O29: =Q26 -> 2.3 | P29: =W26 -> 2.59 | Q29: =X26 -> 1.453191277 | R29: =ACOS(M29/Q29) -> 0.811872969 | S29: =PI()/2-R29 -> 0.7589233577 | T29: =M29/2*TAN(R29) -> 0.5272013106 | U29: =M29*T29/4 -> 0.1318003277 | V29: =S29*Q29^2/8 -> 0.2003334624 | W29: =N29*O29-PI()*Q29^2/4 -> 3.631423736 | X29: =N29*M29/2-2*(U29+V29) -> 0.4857324198 | Y29: =X29*2 -> 0.9714648397 | Z29: =W29+Y29 -> 4.602888575 | AE29: =AF26 -> 1 | AF29: =AH26 -> 2.3 | AG29: =AI26 -> 2.3 | AH29: =AO26 -> 2.59 | AI29: =AP26 -> 1.453191277 | AJ29: =ACOS(AE29/AI29) -> 0.811872969 | AK29: =PI()/2-AJ29 -> 0.7589233577 | AL29: =AE29/2*TAN(AJ29) -> 0.5272013106 | AM29: =AE29*AL29/4 -> 0.1318003277 | AN29: =AK29*AI29^2/8 -> 0.2003334624 | AO29: =AF29*AG29-PI()*AI29^2/4 -> 3.631423736 | AP29: =MIN(AF29:AG29)*AE29/2-2*(AM29+AN29) -> 0.4857324198 | AQ29: =AP29*2 -> 0.9714648397 | AR29: =AO29+AQ29 -> 4.602888575 | AW29: =AX26 -> 1 | AX29: =AZ26 -> 2.3 | AY29: =BA26 -> 2.3 | AZ29: =BG26 -> 2.59 | BA29: =BH26 -> 1.453191277 | BB29: =ACOS(AW29/BA29) -> 0.811872969 | BC29: =PI()/2-BB29 -> 0.7589233577 | BD29: =AW29/2*TAN(BB29) -> 0.5272013106 | BE29: =AW29*BD29/4 -> 0.1318003277 | BF29: =BC29*BA29^2/8 -> 0.2003334624 | BG29: =AX29*AY29-PI()*BA29^2/4 -> 3.631423736 | BH29: =MIN(AX29:AY29)*AW29/2-2*(BE29+BF29) -> 0.4857324198 | BI29: =BH29*2 -> 0.9714648397 | BJ29: =BG29+BI29 -> 4.602888575
M30: =U20 -> STEP-2影響円Dの範囲（b≦D≦a）上下が接するまで | AE30: =AM20 -> STEP-2影響円Dの範囲（a≦D≦b）左右が接するまで | AW30: =BC20 -> STEP-2影響円Dの範囲（a≦D≦bk）左右が接するまで
G31: =U6 -> STEP-1：影響円D範囲(d≦D<b） | M31: 杭径：ｄ | N31: =P25 -> 縦辺：a | O31: =Q25 -> 横辺：b | P31: 高さ：H | Q31: 影響円：D | R31: 角度:δ211 | S31: 角度:δ212 | U31: 高さ:h211 | W31: 面積:A211 | X31: 面積:A212 | Z31: A2-1 | AE31: 杭径：ｄ | AF31: =AH25 -> 縦辺：a | AG31: =AI25 -> 横辺：b | AH31: 高さ：H | AI31: 影響円：D | AJ31: 角度:δ211 | AK31: 角度:δ212 | AL31: 角度:δ113 | AM31: 高さ:h211 | AO31: 面積:A211 | AP31: 面積:A212 | AR31: A2-1 | AW31: 杭径：ｄ | AX31: =AZ25 -> 縦辺：a | AY31: =BA25 -> 横辺：b | AZ31: 高さ：H | BA31: 影響円：D | BB31: 角度:δ211 | BC31: 角度:δ212 | BD31: 角度:δ113 | BE31: 高さ:h211 | BG31: 面積:A211 | BH31: 面積:A212 | BJ31: A2-1
M32: =N26 -> 1 | N32: =P26 -> 2.3 | O32: =Q26 -> 2.3 | P32: =W26 -> 2.59 | Q32: =X26 -> 1.453191277 | R32: =ACOS(O32/Q32) ->  | S32: =PI()/2-R32 ->  | U32: =O32/2*TAN(R32) ->  | W32: =1/4*U32*O32 ->  | X32: =S32*Q32^2/8 ->  | Z32: =O32*N32-4*(W32+X32) ->  | AE32: =AF26 -> 1 | AF32: =AH26 -> 2.3 | AG32: =AI26 -> 2.3 | AH32: =AO26 -> 2.59 | AI32: =AP26 -> 1.453191277 | AJ32: =ACOS(MIN(AF32:AG32)/AI32) ->  | AK32: =PI()/2-AJ32 ->  | AM32: =MIN(AF32:AG32)/2*TAN(AJ32) ->  | AO32: =1/4*AM32*MIN(AF32:AG32) ->  | AP32: =AK32*AI32^2/8 ->  | AR32: =AG32*AF32-4*(AO32+AP32) ->  | AW32: =AX26 -> 1 | AX32: =AZ26 -> 2.3 | AY32: =BA26 -> 2.3 | AZ32: =BG26 -> 2.59 | BA32: =BH26 -> 1.453191277 | BB32: =ACOS(MIN(AX32:AY32)/BA32) ->  | BC32: =PI()/2-BB32 ->  | BE32: =MIN(AX32:AY32)/2*TAN(BB32) ->  | BG32: =1/4*BE32*MIN(AX32:AY32) ->  | BH32: =BC32*BA32^2/8 ->  | BJ32: =AY32*AX32-4*(BG32+BH32) -> 
G33: =U5 -> STEP-0：底面積（d=D） | R33: 角度:δ221 | S33: 角度:δ222 | U33: 高さ:h221 | V33: 高さ:h222 | W33: 面積:A221 | X33: 面積:A222 | Z33: A2-2 | AA33: 2×A2-2 | AB33: 面積A2 | AJ33: 角度:δ221 | AK33: 角度:δ222 | AL33: 角度:δ223 | AM33: 高さ:h221 | AN33: 高さ:h222 | AO33: 面積:A221 | AP33: 面積:A222 | AQ33: 面積:A223 | AR33: A2-2 | AS33: 2×A2-2 | AT33: 面積A2 | BB33: 角度:δ221 | BC33: 角度:δ222 | BD33: 角度:δ223 | BE33: 高さ:h221 | BF33: 高さ:h222 | BG33: 面積:A221 | BH33: 面積:A222 | BI33: 面積:A223 | BJ33: A2-2 | BK33: 2×A2-2 | BL33: 面積A2
R34: =ACOS(M32/Q32) -> 0.811872969 | S34: =PI()/2-R34 -> 0.7589233577 | U34: =M32/2*TAN(R34) -> 0.5272013106 | V34: =N32/2*TAN(S34) -> 1.090664967 | W34: =M32*U34/4 -> 0.1318003277 | X34: =S34*Q32^2/8 -> 0.2003334624 | Z34: =N32*M32/2-2*(W34+X34) -> 0.4857324198 | AA34: =Z34*2 -> 0.9714648397 | AB34: =Z32+AA34 ->  | AJ34: =ACOS(AE32/AI32) -> 0.811872969 | AK34: =ACOS(AF32/AI32) ->  | AL34: =PI()/2-AJ34-AK34 ->  | AM34: =AE32/2*TAN(AJ34) -> 0.5272013106 | AN34: =AF32/2*TAN(AK34) ->  | AO34: =AE32*AM34/4 -> 0.1318003277 | AP34: =AF32*AN34/4 ->  | AQ34: =AL34*AI32^2/8 ->  | AR34: =AF32*AE32/2-2*(AO34+AP34+AQ34) ->  | AS34: =AR34*2 ->  | AT34: =AR32+AS34 ->  | BB34: =ACOS(AW32/BA32) -> 0.811872969 | BC34: =ACOS(AX32/BA32) ->  | BD34: =PI()/2-BB34-BC34 ->  | BE34: =AW32/2*TAN(BB34) -> 0.5272013106 | BF34: =AX32/2*TAN(BC34) ->  | BG34: =AW32*BE34/4 -> 0.1318003277 | BH34: =AX32*BF34/4 ->  | BI34: =BD34*BA32^2/8 ->  | BJ34: =AX32*AW32/2-2*(BG34+BH34+BI34) ->  | BK34: =BJ34*2 ->  | BL34: =BJ32+BK34 -> 
M35: =U21 -> STEP-3影響円Dの範囲（a≦D≦k） | AE35: =AM21 -> STEP-3影響円Dの範囲（a≦D≦k） | AW35: =BC21 -> STEP-3影響円Dの範囲（k≦D≦b）
M36: 杭径：ｄ | N36: =P25 -> 縦辺：a | O36: =Q25 -> 横辺：b | P36: 高さ：H | Q36: 影響円：D | R36: 角度:δ311 | S36: 角度:δ312 | T36: 角度:δ313 | U36: ｈ311 | V36: ｈ312 | W36: A311 | X36: A312 | Y36: A313 | Z36: A3-1 | AE36: 杭径：ｄ | AF36: =AH25 -> 縦辺：a | AG36: =AI25 -> 横辺：b | AH36: 高さ：H | AI36: 影響円：D | AJ36: 角度:δ311 | AK36: 角度:δ312 | AL36: 角度:δ313 | AM36: ｈ311 | AN36: ｈ312 | AO36: A311 | AP36: A312 | AQ36: A313 | AR36: A3-1 | AW36: 杭径：ｄ | AX36: =AZ25 -> 縦辺：a | AY36: =BA25 -> 横辺：b | AZ36: 高さ：H | BA36: 影響円：D | BB36: 角度:δ211 | BC36: 角度:δ212 | BE36: ｈ211 | BF36: ｈ212 | BG36: A211 | BH36: A212 | BI36: A213 | BJ36: A2-1
M37: =N26 -> 1 | N37: =P26 -> 2.3 | O37: =Q26 -> 2.3 | P37: =W26 -> 2.59 | Q37: =X26 -> 1.453191277 | R37: =ACOS(O37/Q37) ->  | S37: =ACOS(N37/Q37) ->  | T37: =PI()/2-R37-S37 ->  | U37: =O37/2*TAN(R37) ->  | V37: =N37/2*TAN(S37) ->  | W37: =U37*O37/4 ->  | X37: =V37*N37/4 ->  | Y37: =T37*Q37^2/8 ->  | Z37: =N37*O37-4*(W37+X37+Y37) ->  | AE37: =AF26 -> 1 | AF37: =AH26 -> 2.3 | AG37: =AI26 -> 2.3 | AH37: =AO26 -> 2.59 | AI37: =AP26 -> 1.453191277 | AJ37: =ACOS(AG37/AI37) ->  | AK37: =ACOS(AF37/AI37) ->  | AL37: =PI()/2-AJ37-AK37 ->  | AM37: =AG37/2*TAN(AJ37) ->  | AN37: =AF37/2*TAN(AK37) ->  | AO37: =AM37*AG37/4 ->  | AP37: =AN37*AF37/4 ->  | AQ37: =AL37*AI37^2/8 ->  | AR37: =AF37*AG37-4*(AO37+AP37+AQ37) ->  | AW37: =AX26 -> 1 | AX37: =AZ26 -> 2.3 | AY37: =BA26 -> 2.3 | AZ37: =BG26 -> 2.59 | BA37: =BH26 -> 1.453191277 | BB37: =ACOS(MIN(AX37:AY37)/BA37) ->  | BC37: =PI()/2-BB37 ->  | BE37: =AX37/2*TAN(BB37) ->  | BG37: =BE37*AX37/4 ->  | BH37: =BC37*BA37^2/8 ->  | BJ37: =AX37*AY37-4*(BG37+BH37+BI37) -> 
R38: 角度:δ321 | S38: 角度:δ322 | T38: 角度:δ323 | U38: ｈ321 | V38: ｈ322 | W38: A321 | X38: A322 | Y38: A323 | Z38: A3-2 | AA38: 2×A3-2 | AB38: 面積A3 | AJ38: 角度:δ321 | AK38: 角度:δ322 | AL38: 角度:δ323 | AM38: ｈ321 | AN38: ｈ322 | AO38: A321 | AP38: A322 | AQ38: A323 | AR38: A3-2 | AS38: 2×A3-2 | AT38: 面積A3 | BL38: 面積A2
R39: =ACOS(M37/Q37) -> 0.811872969 | S39: =S37 ->  | T39: =PI()/2-R39-S39 ->  | U39: =M37/2*TAN(R39) -> 0.5272013106 | V39: =V37 ->  | W39: =U39*M37/4 -> 0.1318003277 | X39: =V39*N37/4 ->  | Y39: =T39*Q37^2/8 ->  | Z39: =N37/2*M37-2*(W39+X39+Y39) ->  | AA39: =Z39*2 ->  | AB39: =Z37+AA39 ->  | AJ39: =ACOS(AE37/AI37) -> 0.811872969 | AK39: =AK37 ->  | AL39: =PI()/2-AJ39-AK39 ->  | AM39: =AE37/2*TAN(AJ39) -> 0.5272013106 | AN39: =AN37 ->  | AO39: =AM39*AE37/4 -> 0.1318003277 | AP39: =AN39*AF37/4 ->  | AQ39: =AL39*AI37^2/8 ->  | AR39: =AF37/2*AE37-2*(AO39+AP39+AQ39) ->  | AS39: =AR39*2 ->  | AT39: =AR37+AS39 ->  | BL39: =BJ37 -> 
M40: =U22 -> STEP-4影響円Dの範囲（k≦D≦max）対角が接するまで | AE40: =AM22 -> STEP-4影響円Dの範囲（k≦D≦max）対角が接するまで | AW40: =BC22 -> STEP-4影響円Dの範囲（b≦D≦max）対角が接するまで
M41: 杭径：ｄ | N41: =P25 -> 縦辺：a | O41: =Q25 -> 横辺：b | P41: 高さ：H | Q41: 影響円：D | R41: 角度:δ411 | S41: 角度:δ412 | T41: 角度:δ413 | U41: ｈ411 | V41: ｈ412 | W41: A411 | X41: A412 | Y41: A313 | Z41: A4-1 | AE41: 杭径：ｄ | AF41: =AH25 -> 縦辺：a | AG41: =AI25 -> 横辺：b | AH41: 高さ：H | AI41: 影響円：D | AJ41: 角度:δ411 | AK41: 角度:δ412 | AL41: 角度:δ413 | AM41: ｈ411 | AN41: ｈ412 | AO41: A411 | AP41: A412 | AQ41: A313 | AR41: A4-1 | AW41: 杭径：ｄ | AX41: =AZ25 -> 縦辺：a | AY41: =BA25 -> 横辺：b | AZ41: 高さ：H | BA41: 影響円：D | BB41: 角度:δ311 | BC41: 角度:δ312 | BD41: 角度:δ313 | BE41: ｈ311 | BF41: ｈ312 | BG41: A311 | BH41: A312 | BI41: A313 | BJ41: A3-1
M42: =N26 -> 1 | N42: =P26 -> 2.3 | O42: =Q26 -> 2.3 | P42: =W26 -> 2.59 | Q42: =X26 -> 1.453191277 | R42: =ACOS(O42/Q42) ->  | S42: =ACOS(N42/Q42) ->  | T42: =PI()/2-R42-S42 ->  | U42: =O42/2*TAN(R42) ->  | V42: =N42/2*TAN(S42) ->  | W42: =U42*O42/4 ->  | X42: =V42*N42/4 ->  | Y42: =T42*Q42^2/8 ->  | Z42: =N42*O42-4*(W42+X42+Y42) ->  | AE42: =AF26 -> 1 | AF42: =AH26 -> 2.3 | AG42: =AI26 -> 2.3 | AH42: =AO26 -> 2.59 | AI42: =AP26 -> 1.453191277 | AJ42: =ACOS(AG42/AI42) ->  | AK42: =ACOS(AF42/AI42) ->  | AL42: =PI()/2-AJ42-AK42 ->  | AM42: =AG42/2*TAN(AJ42) ->  | AN42: =AF42/2*TAN(AK42) ->  | AO42: =AM42*AG42/4 ->  | AP42: =AN42*AF42/4 ->  | AQ42: =AL42*AI42^2/8 ->  | AR42: =AF42*AG42-4*(AO42+AP42+AQ42) ->  | AW42: =AX26 -> 1 | AX42: =AZ26 -> 2.3 | AY42: =BA26 -> 2.3 | AZ42: =BG26 -> 2.59 | BA42: =BH26 -> 1.453191277 | BB42: =ACOS(AY42/BA42) ->  | BC42: =ACOS(AX42/BA42) ->  | BD42: =PI()/2-BB42-BC42 ->  | BE42: =AY42/2*TAN(BB42) ->  | BF42: =AX42/2*TAN(BC42) ->  | BG42: =AY42*BE42/4 ->  | BH42: =BF42*AX42/4 ->  | BI42: =BD42*BA42^2/8 ->  | BJ42: =AX42*AY42-4*(BG42+BH42+BI42) -> 
AB43: 面積A4 | AT43: 面積A4 | BB43: 角度:δ321 | BC43: 角度:δ322 | BD43: 角度:δ323 | BE43: ｈ321 | BF43: ｈ322 | BG43: A321 | BH43: A322 | BI43: A323 | BJ43: A3-2 | BK43: 2×A3-2 | BL43: 面積A3
AB44: =Z42+AA44 ->  | AT44: =AR42+AS44 ->  | BL44: =BJ42+BK44 -> 
A45: STEP-0：底面積
B47: 項目 | C47: 杭径：ｄ | D47: 杭面積 | E47: 短辺：a | F47: 長辺：b | G47: 分担面：L | H47: 面積：aL | I47: 改良率
B48: 数値 | C48: =F3 -> 1 | D48: =PI()*C48^2/4 -> 0.7853981634 | E48: =F4 -> 2.3 | F48: =F5 -> 2.3 | G48: =F6 ->  | H48: =E48*G48 ->  | I48: =(D48*2/H48) -> 
B50: =A45 -> STEP-0：底面積
B66: 塑性角：θ | C66: ラジアン | D66: 高さ：H | E66: 影響円：D | F66: k | G66: max | H66: 面積A0-1 | I66: 面積2A0-2 | J66: 面積A0
B67: =F13 -> 85 | C67: =RADIANS(B67) -> 1.483529864 | D67: =E17 -> 1.2 | E67: =$C$48+2*D67/TAN($C$67) -> 1.209972792 | F67: =SQRT((C48^2+E48^2)) -> 2.507987241 | G67: =SQRT((E48^2+F48^2)) -> 3.252691193 | H67: =E48*F48-D48 -> 4.504601837 | I67: =C48*E48-D48 -> 1.514601837 | J67: =H67+I67 -> 6.019203673
A88: =U6 -> STEP-1：影響円D範囲(d≦D<b）
B90: 杭径：ｄ | C90: =E47 -> 短辺：a | D90: =F47 -> 長辺：b | E90: 高さ：H | F90: 影響円：D | G90: 角度:δ121 | H90: 角度:δ122 | I90: 高さ:h12
B91: =C48 -> 1 | C91: =E48 -> 2.3 | D91: =F48 -> 2.3 | E91: =E18 -> 7.429533997 | F91: =$C$48+2*E91/TAN($C$67) -> 2.3 | G91: =ACOS(B91/F91) -> 1.120999466 | H91: =PI()/2-G91 -> 0.4497968604 | I91: =B91/2*TAN(G91) -> 1.035615759
B93: =A88 -> STEP-1：影響円D範囲(d≦D<b）
B109: 面積:A121 | C109: 面積:A122 | D109: A1-1 | E109: A1-2 | F109: 2×A1-2 | G109: 面積A1
B110: =B91*I91/4 -> 0.2589039397 | C110: =H91*F91^2/8 -> 0.297428174 | D110: =C91*D91-PI()*F91^2/4 -> 1.135243716 | E110: =C91*B91/2-2*(B110+C110) -> 0.03733577266 | F110: =E110*2 -> 0.07467154532 | G110: =D110+F110 -> 1.209915261
A131: =U7 -> STEP-2：影響円D範囲(b≦D<a）
B132: 杭径：ｄ | C132: =F3 -> 1
B133: =C90 -> 短辺：a | C133: =D90 -> 長辺：b | D133: 高さ：H | E133: 影響円：D | F133: 角度:δ211 | G133: 角度:δ212 | I133: 高さ:h21
B134: =F4 -> 2.3 | C134: =F5 -> 2.3 | D134: =E19 -> 0 | E134: =$C$48+2*D134/TAN($C$67) -> 1 | F134: =ACOS(B134/E134) ->  | G134: =PI()/2-F134 ->  | I134: =B134/2*TAN(F134) -> 
F135: 角度:δ221 | G135: 角度:δ222 | H135: 角度:δ223 | I135: ｈ221 | J135: ｈ222
F136: =ACOS(C132/E134) -> 0 | G136: =ACOS(B134/E134) ->  | H136: =PI()/2-F136-G136 ->  | I136: =C132/2*TAN(F136) -> 0 | J136: =B134/2*TAN(G136) -> 
B137: =A131 -> STEP-2：影響円D範囲(b≦D<a）
B152: 面積:A211 | C152: 面積:A212 | D152: A2-1
B153: =1/4*I134*B134 ->  | C153: =G134*E134^2/8 ->  | D153: =C134*B134-4*(B153+C153) -> 
B154: A221 | C154: A222 | D154: A223 | E154: A2-2 | F154: 2×A2-2 | I154: 面積A2
B155: =C132*I136/4 -> 0 | C155: =J136*B134/4 ->  | D155: =H136*E134^2/8 ->  | E155: =C132*B134/2-2*(B155+C155+D155) ->  | F155: =E155*2 ->  | I155: =D153+F155 -> 
A174: =U8 -> STEP-3：影響円D範囲(a≦D<k）
B176: 杭径：ｄ | C176: =E47 -> 短辺：a | D176: =F47 -> 長辺：b | E176: 高さ：H | F176: 影響円：D | G176: 角度:δ211 | H176: 角度:δ212 | I176: 高さ:h21
B177: =F3 -> 1 | C177: =E48 -> 2.3 | D177: =F48 -> 2.3 | E177: =E20 -> 8.618186517 | F177: =$C$48+2*E177/TAN($C$67) -> 2.507987241 | G177: =ACOS(C177/F177) -> 0.4101273405 | H177: =PI()/2-G177 -> 1.160668986 | I177: =C177/2*TAN(G177) -> 0.5
B180: =A174 -> STEP-3：影響円D範囲(a≦D<k）
B195: 面積:A211 | C195: 面積:A212 | D195: A2-1 | E195: 面積:A221 | F195: 面積:A222 | G195: A2-2 | H195: 2×A2-2 | I195: 面積A2
B196: =1/4*I177*C177 -> 0.2875 | C196: =H177*F177^2/8 -> 0.9125759904 | D196: =D177*C177-4*(B196+C196) -> 0.4896960382 | E196: =B177*I179/4 -> 0 | F196: =H179*F177^2/8 -> 0 | G196: 0 | H196: =G196*2 -> 0 | I196: =D196+H196 -> 0.4896960382
A217: =U9 -> STEP-4：影響円D範囲(k≦D≦max）
B218: 杭径：ｄ | C218: =F3 -> 1
B219: 短辺：a | C219: 長辺：ｂ | D219: 高さ：H | E219: 影響円：D | F219: 角度:δ311 | G219: 角度:δ312 | H219: 角度:δ313 | I219: ｈ311 | J219: ｈ312
B220: =P26 -> 2.3 | C220: =Q26 -> 2.3 | D220: =E21 -> 0 | E220: =$C$48+2*D220/TAN($C$67) -> 1 | F220: =ACOS(C220/E220) ->  | G220: =ACOS(B220/E220) ->  | H220: =PI()/2-F220-G220 ->  | I220: =C220/2*TAN(F220) ->  | J220: =B220/2*TAN(G220) -> 
B221: 短辺：a | C221: 長辺：ｂ | D221: 高さ：H | E221: 影響円：D | F221: 角度:δ321 | G221: 角度:δ322 | H221: 角度:δ323 | I221: ｈ321 | J221: ｈ322
B222: =B220 -> 2.3 | C222: =C220 -> 2.3 | D222: =D220 -> 0 | E222: =E220 -> 1 | F222: =ACOS(C218/E220) -> 0 | G222: =ACOS(B220/E220) ->  | H222: =PI()/2-F222-G222 ->  | I222: =C218/2*TAN(F222) -> 0 | J222: =B220/2*TAN(G222) -> 
B224: =A217 -> STEP-4：影響円D範囲(k≦D≦max）
B238: A311 | C238: A312 | D238: A313 | E238: A3-1 | G238: 面積A3
B239: =C220*I220/4 ->  | C239: =J220*B220/4 ->  | D239: =H220*E220^2/8 ->  | E239: =B220*C220-4*(B239+C239+D239) ->  | G239: =E239+F241 -> 
K259: ＊

Sheet 二軸千鳥配置
A1: 盛土体積 計算条件 | L1: ☆ | M1: ⇦検討条件参照先
B2: 項 目 | E2: 記号 | F2: 値 | G2: 単位 | H2: 備考 | R2: ー積分計算に使用する部分ー
B3: セメント コラム 改良体 | C3: 改良体直径 | E3: ｄ | F3: =INDIRECT("'"&$L$1&"'!"&L3) -> 1 | G3: m | L3: F4 | M3: 改良体直径はd＝0.6～1.3m | T3: =VLOOKUP("〇",U12:W14,3,FALSE) -> 5
C4: 改良体間隔 (改良体中心間隔) | E4: a | F4: =F3 -> 1 | G4: 〃 | L4: F5 | M4: 改良体間隔はλ＝1.0～2.5m | R4: 影響円直径D | S4: その時の高さ | T4: 面積 | U4: 面積計算STEP | Y4: 影響円の範囲
E5: b | F5: =INDIRECT("'"&$L$1&"'!"&L5) -> 2.3 | G5: 〃 | L5: F6 | M5: 改良率はap＝10%以上 | T5: =T18 -> -0.7853981634 | U5: =U18 -> STEP-0：底面積（d=D）
C6: 分担面 横：L | E6: L | F6: =INDIRECT("'"&$L$1&"'!"&L6) ->  | G6: 〃 | L6: F7 | Q6: 1 | R6: =SMALL($M$18:$M$22,Q6) ->  | S6: =SMALL($N$18:$N$22,Q6) ->  | T6: =VLOOKUP(R7,$M$19:$R$22,T3,FALSE) ->  | U6: =X6&Y6&Z6&AA6&"）" ->  | X6: STEP-1：影響円D範囲( | Y6: =R18 -> d | Z6: ≦D< | AA6: =VLOOKUP(R7,$M$19:$R$22,6,FALSE) -> 
C7: 分担面 縦：h | E7: h | F7: =INDIRECT("'"&$L$1&"'!"&L7) -> 0 | G7: 〃 | L7: F8 | Q7: 2 | R7: =SMALL($M$18:$M$22,Q7) ->  | S7: =SMALL($N$18:$N$22,Q7) ->  | T7: =VLOOKUP(R8,$M$19:$R$22,T3,FALSE) ->  | U7: =X7&Y7&Z7&AA7&"）" ->  | X7: STEP-2：影響円D範囲( | Y7: =AA6 ->  | Z7: ≦D< | AA7: =VLOOKUP(R8,$M$19:$R$22,6,FALSE) -> 
C8: 改良率 | E8: ａp | F8: =ROUNDDOWN(U26,3) ->  | G8: - | L8: F13 | M8: 盛土高 | Q8: 3 | R8: =SMALL($M$18:$M$22,Q8) ->  | S8: =SMALL($N$18:$N$22,Q8) ->  | T8: =VLOOKUP(R9,$M$19:$R$22,T3,FALSE) ->  | U8: =X8&Y8&Z8&AA8&"）" ->  | X8: STEP-3：影響円D範囲( | Y8: =AA7 ->  | Z8: ≦D< | AA8: =VLOOKUP(R9,$M$19:$R$22,6,FALSE) -> 
M9: 計画高 | N9: 原地盤高 | Q9: 4 | R9: =SMALL($M$18:$M$22,Q9) ->  | S9: =SMALL($N$18:$N$22,Q9) ->  | T9: =VLOOKUP(R10,$M$19:$R$22,T3,FALSE) ->  | U9: =X9&Y9&Z9&AA9&"）" ->  | X9: STEP-4：影響円D範囲( | Y9: =AA8 ->  | Z9: ≦D≦ | AA9: =R22 -> 2r
M10: =INDIRECT("'"&$L$1&"'!"&O10) -> 2.59 | N10: =INDIRECT("'"&$L$1&"'!"&P10) -> 0 | O10: L12 | P10: M12 | Q10: 5 | R10: =SMALL($M$18:$M$22,Q10) ->  | S10: =SMALL($N$18:$N$22,Q10) ->  | T10: 0 | U10: 計算範囲外 | Y10: =AA9 -> 2r
B12: 盛土条件 | C12: 盛土高さ | E12: Ｈe | F12: =INDIRECT("'"&$L$1&"'!"&L8) -> 2.59 | G12: m | H12: =+IF(AND(M10="",N10=""),"","ＦH＝"&FIXED(M10,2)&"m，ＧL＝"&FIXED(N10,2)&"m") -> ＦH＝2.59m，ＧL＝0.00m | L12: F15 | M12: D15 | T12: Case1 | U12: =IF(Z26>=Q26,"〇","-") -> - | V12: b≦j | W12: 3
B13: 塑性角 | C13: 改良形式： | D13: =INDIRECT("'"&$L$1&"'!"&M12) -> 浮き型 | E13: θ | F13: =INDIRECT("'"&$L$1&"'!"&L12) -> 85 | G13: 度 | M13: D16 | T13: Case2 | U13: =IF(AND(Z26<Q26,AA26>=Q26),"〇","-") -> - | V13: j<b≦k | W13: 4
C14: 補助工法： | D14: =INDIRECT("'"&$L$1&"'!"&M13) -> 浅層改良 | T14: Case3 | U14: =IF(AA26<Q26,"〇","-") -> 〇 | V14: k<b | W14: 5
M15: Case1：b≦jの場合 | O15: 3 | P15: 4 | Q15: 5 | AE15: Case2：j<b≦kの場合 | AW15: Case3：k≦bの場合
B16: 影響円D | C16: 影響円直径D | D16: その時の高さ | E16: 高さ:計算例 | F16: 面積:計算例 | G16: 概要 | M16: 影響円直径D | N16: その時の高さ | O16: 面積 | R16: 影響円D
B17: =Y6 -> d | C17: =R6 ->  | E17: 1.59375 | F17: =H66 -> -0.7853981634 | G17: STEP0 …底面積A0 | O17: case1 | P17: Case2 | Q17: Case3 | AE17: 影響円直径D | AF17: その時の高さ | AG17: 面積 | AH17: 影響円D | AW17: 影響円直径D | AX17: その時の高さ | AY17: 面積 | AZ17: 影響円D
B18: =Y7 ->  | E18: =D18 ->  | F18: =F109 ->  | G18: STEP1 …底面積A1 | M18: =$N$26 -> 1 | N18: =(M18-N26)/2*TAN(O30) -> 0 | O18: =V30 -> -0.7853981634 | P18: =AN30 -> -0.7853981634 | Q18: =BF30 -> -0.7853981634 | R18: d | T18: =O18 -> -0.7853981634 | U18: STEP-0：底面積（d=D） | AE18: =$N$26 -> 1 | AF18: =(AE18-AF26)/2*TAN(AG30) -> 0 | AG18: =AN30 -> -0.7853981634 | AH18: d | AL18: =P18 -> -0.7853981634 | AM18: =U18 -> STEP-0：底面積（d=D） | AW18: =$N$26 -> 1 | AX18: =(AW18-AX26)/2*TAN(AY30) -> 0 | AY18: =BF30 -> -0.7853981634 | AZ18: d | BD18: =Q18 -> -0.7853981634 | BE18: =AK44 -> 0.2636006553
B19: =Y8 ->  | E19: =D19 ->  | F19: =G152 ->  | G19: STEP2…底面積A2 | M19: =$Z$26 -> 0.65 | N19: =(M19-N26)/2*TAN(O30) -> -2.000259153 | O19: =AA39 ->  | P19: =AS34 -> -1.493555712 | Q19: =BK34 -> -1.493555712 | R19: j | S19: =N18 -> 0 | T19: =O19 ->  | U19: STEP-1影響円Dの範囲（d≦D≦b）左右が接するまで | Z19: ☆ | AE19: =$Z$26 -> 0.65 | AF19: =(AE19-AF26)/2*TAN(AG30) -> -2.000259153 | AG19: =AS34 -> -1.493555712 | AH19: j | AK19: =AF18 -> 0 | AL19: =P19 -> -1.493555712 | AM19: STEP-1影響円Dの範囲（d≦D≦j）上下が接するまで | AW19: =$Z$26 -> 0.65 | AX19: =(AW19-AX26)/2*TAN(AY30) -> -2.000259153 | AY19: =BK34 -> -1.493555712 | AZ19: j | BC19: =AX18 -> 0 | BD19: =Q19 -> -1.493555712 | BE19: STEP-1影響円Dの範囲（d≦D≦j）左右が接するまで
B20: =Y9 ->  | E20: =D20 ->  | F20: =H195 ->  | G20: STEP3 …底面積A3 | M20: =AA26 -> 1.65 | N20: =(M20-N26)/2*TAN(O30) -> 3.714766998 | O20: =AA44 ->  | P20: =AS44 ->  | Q20: =BK39 -> -0.7470368025 | R20: k | S20: =N19 -> -2.000259153 | T20: =O20 ->  | U20: STEP-2影響円Dの範囲（b≦D≦j）上下が接するまで | Z20: I26 | AA20: =INDIRECT("'"&$Z$19&"'!"&Z20) -> 2.59 | AE20: =AS26 -> 1.65 | AF20: =(AE20-AF26)/2*TAN(AG30) -> 3.714766998 | AG20: =AS39 -> -0.7470368025 | AH20: k | AK20: =AF19 -> -2.000259153 | AL20: =P20 ->  | AM20: STEP-2影響円Dの範囲（j≦D≦b）左右が接するまで | AW20: =BK26 -> 1.65 | AX20: =(AW20-AX26)/2*TAN(AY30) -> 3.714766998 | AY20: =BK39 -> -0.7470368025 | AZ20: k | BC20: =AX19 -> -2.000259153 | BD20: =Q20 -> -0.7470368025 | BE20: STEP-2影響円Dの範囲（j≦D≦k）対角が接するまで
B21: =Y10 -> 2r | E21: =D21 ->  | F21: =H238 ->  | G21: STEP4 …底面積A4 | M21: =Q26 -> 2.3 | N21: =(M21-N26)/2*TAN(O30) -> 7.429533997 | O21: =AA34 -> -1.493555712 | P21: =AS39 -> -0.7470368025 | Q21: =BK44 -> -0.7470368025 | R21: b | S21: =N20 -> 3.714766998 | T21: =O21 -> -1.493555712 | U21: STEP-3影響円Dの範囲（j≦D≦k）対角が接するまで | Z21: 採用値 | AE21: =AI26 -> 2.3 | AF21: =(AE21-AF26)/2*TAN(AG30) -> 7.429533997 | AG21: =AS44 ->  | AH21: b | AK21: =AF20 -> 3.714766998 | AL21: =P21 -> -0.7470368025 | AM21: STEP-3影響円Dの範囲（b≦D≦k）対角が接するまで | AW21: =BA26 -> 2.3 | AX21: =(AW21-AX26)/2*TAN(AY30) -> 7.429533997 | AY21: =BK44 -> -0.7470368025 | AZ21: b | BC21: =AX20 -> 3.714766998 | BD21: =Q21 -> -0.7470368025 | BE21: STEP-3影響円Dの範囲（k≦D≦b）左右が接するまで
M22: =AB26*2 ->  | N22: =(M22-N26)/2*TAN(O30) ->  | O22: =AA49 ->  | P22: =AS49 ->  | Q22: =BK49 ->  | R22: 2r | S22: =N21 -> 7.429533997 | T22: =O22 ->  | U22: STEP-4：(2r)が接するまで | Z22: 高さ | AA22: 面積 | AB22: step | AE22: =AT26*2 ->  | AF22: =(AE22-AF26)/2*TAN(AG30) ->  | AG22: =AS49 ->  | AH22: 2r | AK22: =AF21 -> 7.429533997 | AL22: =P22 ->  | AM22: =AE45 -> STEP-4：(2r)が接するまで | AW22: =BL26*2 ->  | AX22: =(AW22-AX26)/2*TAN(AY30) ->  | AY22: =BK49 ->  | AZ22: 2r | BC22: =AX21 -> 7.429533997 | BD22: =Q22 ->  | BE22: =AW45 -> STEP-4：(2r)が接するまで
S23: =N22 ->  | T23: =P23 -> 0 | U23: 計算範囲外 | Z23: =INDIRECT("'"&$Z$19&"'!"&Z20) -> 2.59 | AA23: =IF(Z23=0,O18,VLOOKUP(Z23,S5:T10,2,TRUE)) ->  | AB23: =IF(Z23=0,U5,VLOOKUP(Z23,S5:U10,3,TRUE)) ->  | AK23: =AF22 ->  | AL23: =AH23 -> 0 | AM23: 計算範囲外 | BC23: =AX22 ->  | BD23: =AZ23 -> 0 | BE23: 計算範囲外
M24: STEP-0：底面積 | AE24: STEP-0：底面積 | AW24: STEP-0：底面積
G25: =U9 ->  | M25: 項目 | N25: 杭径：ｄ | O25: 杭面積 | P25: 台形上辺 ：a | Q25: 台形底辺 ：b | R25: 分担面横：L | S25: 分担面縦：h | T25: 面積：Lh | U25: 改良率 | V25: （a+b）*h/2 | X25: （ｂ-ｄ）/2 | Y25: （ｂ+ｄ）/2 | Z25: 接円距離：j | AA25: 対角距離：k | AB25: ｒ | AE25: 項目 | AF25: 杭径：ｄ | AG25: 杭面積 | AH25: 台形上辺 ：a | AI25: 台形底辺 ：b | AJ25: 分担面横：L | AK25: 分担面縦：h | AL25: 面積：Lh | AM25: 改良率 | AN25: （a+b）*h/2 | AP25: （ｂ-ｄ）/2 | AQ25: （ｂ+ｄ）/2 | AR25: 接円距離：j | AS25: 対角距離：k | AT25: ｒ | AW25: 項目 | AX25: 杭径：ｄ | AY25: 杭面積 | AZ25: 台形上辺 ：a | BA25: 台形底辺 ：b | BB25: 分担面横：L | BC25: 分担面縦：h | BD25: 面積：Lh | BE25: 改良率 | BF25: （a+b）*h/2 | BH25: （ｂ-ｄ）/2 | BI25: （ｂ+ｄ）/2 | BJ25: 接円距離：j | BK25: 対角距離：k | BL25: ｒ
M26: 数値 | N26: =$F$3 -> 1 | O26: =PI()*N26^2/4 -> 0.7853981634 | P26: =$F$4 -> 1 | Q26: =$F$5 -> 2.3 | R26: =$F$6 ->  | S26: =$F$7 -> 0 | T26: =R26*S26 ->  | U26: =(O26*2/T26) ->  | V26: =(P26+Q26)/2*S26 -> 0 | X26: =(Q26-N26)/2 -> 0.65 | Y26: =(Q26+N26)/2 -> 1.65 | Z26: =SQRT(P28+Q28) -> 0.65 | AA26: =SQRT(P28+R28) -> 1.65 | AB26: =SQRT(U28+S28*T28/8+(S28*T28/(8*S26))^2+V28) ->  | AE26: 数値 | AF26: =$F$3 -> 1 | AG26: =PI()*AF26^2/4 -> 0.7853981634 | AH26: =$F$4 -> 1 | AI26: =$F$5 -> 2.3 | AJ26: =$F$6 ->  | AK26: =$F$7 -> 0 | AL26: =AJ26*AK26 ->  | AM26: =(AG26*2/AL26) ->  | AN26: =(AH26+AI26)/2*AK26 -> 0 | AP26: =(AI26-AF26)/2 -> 0.65 | AQ26: =(AI26+AF26)/2 -> 1.65 | AR26: =SQRT(AH28+AI28) -> 0.65 | AS26: =SQRT(AH28+AJ28) -> 1.65 | AT26: =SQRT(AM28+AK28*AL28/8+(AK28*AL28/(8*AK26))^2+AN28) ->  | AW26: 数値 | AX26: =$F$3 -> 1 | AY26: =PI()*AX26^2/4 -> 0.7853981634 | AZ26: =$F$4 -> 1 | BA26: =$F$5 -> 2.3 | BB26: =$F$6 ->  | BC26: =$F$7 -> 0 | BD26: =BB26*BC26 ->  | BE26: =(AY26*2/BD26) ->  | BF26: =(AZ26+BA26)/2*BC26 -> 0 | BH26: =(BA26-AX26)/2 -> 0.65 | BI26: =(BA26+AX26)/2 -> 1.65 | BJ26: =SQRT(AZ28+BA28) -> 0.65 | BK26: =SQRT(AZ28+BB28) -> 1.65 | BL26: =SQRT(BE28+BC28*BD28/8+(BC28*BD28/(8*BC26))^2+BF28) -> 
G27: =U8 ->  | N27: ｄ2 | O27: b2 | P27: h2 | Q27: ［（ｂ-ｄ）/2］2 | R27: ［（ｂ+ｄ）/2］2 | S27: A=d-b | T27: B=d+b | U27: (h/2)2 | V27: (b/2)2 | W27: (d/2)2 | X27: α | Y27: β | Z27: γ | AA27: 検算ｈ | AB27: 別式ｒ | AF27: ｄ2 | AG27: b2 | AH27: h2 | AI27: ［（ｂ-ｄ）/2］2 | AJ27: ［（ｂ+ｄ）/2］2 | AK27: A=d-b | AL27: B=d+b | AM27: (h/2)2 | AN27: (b/2)2 | AO27: (d/2)2 | AP27: α | AQ27: β | AR27: γ | AS27: 検算ｈ | AT27: 別式ｒ | AX27: ｄ2 | AY27: b2 | AZ27: h2 | BA27: ［（ｂ-ｄ）/2］2 | BB27: ［（ｂ+ｄ）/2］2 | BC27: A=d-b | BD27: B=d+b | BE27: (h/2)2 | BF27: (b/2)2 | BG27: (d/2)2 | BH27: α | BI27: β | BJ27: γ | BK27: 検算ｈ | BL27: 別式ｒ
N28: =N26^2 -> 1 | O28: =Q26^2 -> 5.29 | P28: =S26^2 -> 0 | Q28: =X26^2 -> 0.4225 | R28: =Y26^2 -> 2.7225 | S28: =N26-Q26 -> -1.3 | T28: =N26+Q26 -> 3.3 | U28: =(S26/2)^2 -> 0 | V28: =(Q26/2)^2 -> 1.3225 | W28: =(N26/2)^2 -> 0.25 | X28: =ATAN(S26/X26) -> 0 | Y28: =PI()-X28 -> 3.141592654 | Z28: =ATAN(S26/Y26) -> 0 | AA28: =SQRT((AB26^2-V28))+SQRT((AB26^2-W28)) ->  | AB28: =0.5*SQRT(P28+(N28+O28)/2+(N28-O28)^2/(16*P28)) ->  | AF28: =AF26^2 -> 1 | AG28: =AI26^2 -> 5.29 | AH28: =AK26^2 -> 0 | AI28: =AP26^2 -> 0.4225 | AJ28: =AQ26^2 -> 2.7225 | AK28: =AF26-AI26 -> -1.3 | AL28: =AF26+AI26 -> 3.3 | AM28: =(AK26/2)^2 -> 0 | AN28: =(AI26/2)^2 -> 1.3225 | AO28: =(AF26/2)^2 -> 0.25 | AP28: =ATAN(AK26/AP26) -> 0 | AQ28: =PI()-AP28 -> 3.141592654 | AR28: =ATAN(AK26/AQ26) -> 0 | AS28: =SQRT((AT26^2-AN28))+SQRT((AT26^2-AO28)) ->  | AT28: =0.5*SQRT(AH28+(AF28+AG28)/2+(AF28-AG28)^2/(16*AH28)) ->  | AX28: =AX26^2 -> 1 | AY28: =BA26^2 -> 5.29 | AZ28: =BC26^2 -> 0 | BA28: =BH26^2 -> 0.4225 | BB28: =BI26^2 -> 2.7225 | BC28: =AX26-BA26 -> -1.3 | BD28: =AX26+BA26 -> 3.3 | BE28: =(BC26/2)^2 -> 0 | BF28: =(BA26/2)^2 -> 1.3225 | BG28: =(AX26/2)^2 -> 0.25 | BH28: =ATAN(BC26/BH26) -> 0 | BI28: =PI()-BH28 -> 3.141592654 | BJ28: =ATAN(BC26/BI26) -> 0 | BK28: =SQRT((BL26^2-BF28))+SQRT((BL26^2-BG28)) ->  | BL28: =0.5*SQRT(AZ28+(AX28+AY28)/2+(AX28-AY28)^2/(16*AZ28)) -> 
G29: =U7 ->  | N29: 塑性角：θ | O29: ラジアン | P29: 高さ：H | Q29: 影響円：D | R29: k | S29: max | T29: 面積A0-1 | U29: 面積2A0-2 | V29: 面積A0 | AF29: 塑性角：θ | AG29: ラジアン | AH29: 高さ：H | AI29: 影響円：D | AJ29: k | AK29: max | AL29: 面積A0-1 | AM29: 面積2A0-2 | AN29: 面積A0 | AX29: 塑性角：θ | AY29: ラジアン | AZ29: 高さ：H | BA29: 影響円：D | BB29: k | BC29: max | BD29: 面積A0-1 | BE29: 面積2A0-2 | BF29: 面積A0
N30: =$F$13 -> 85 | O30: =RADIANS(N30) -> 1.483529864 | P30: =$Z$23 -> 2.59 | Q30: =N26+2*P30/TAN(O30) -> 1.453191277 | R30: =SQRT((N26^2+P26^2)) -> 1.414213562 | S30: =SQRT((P26^2+Q26^2)) -> 2.507987241 | T30: =P26*Q26-O26 -> 1.514601837 | U30: =N26*P26-O26 -> 0.2146018366 | V30: =V26-O26 -> -0.7853981634 | AF30: =$F$13 -> 85 | AG30: =RADIANS(AF30) -> 1.483529864 | AH30: =$Z$23 -> 2.59 | AI30: =AF26+2*AH30/TAN(AG30) -> 1.453191277 | AJ30: =SQRT((AF26^2+AH26^2)) -> 1.414213562 | AK30: =SQRT((AH26^2+AI26^2)) -> 2.507987241 | AL30: =AH26*AI26-AG26 -> 1.514601837 | AM30: =AF26*AH26-AG26 -> 0.2146018366 | AN30: =AN26-AG26 -> -0.7853981634 | AX30: =$F$13 -> 85 | AY30: =RADIANS(AX30) -> 1.483529864 | AZ30: =$Z$23 -> 2.59 | BA30: =AX26+2*AZ30/TAN(AY30) -> 1.453191277 | BB30: =SQRT((AX26^2+AZ26^2)) -> 1.414213562 | BC30: =SQRT((AZ26^2+BA26^2)) -> 2.507987241 | BD30: =AZ26*BA26-AY26 -> 1.514601837 | BE30: =AX26*AZ26-AY26 -> 0.2146018366 | BF30: =BF26-AY26 -> -0.7853981634
G31: =U6 -> 
M32: =U19 -> STEP-1影響円Dの範囲（d≦D≦b）左右が接するまで | AE32: =AM19 -> STEP-1影響円Dの範囲（d≦D≦j）上下が接するまで | AW32: =BE19 -> STEP-1影響円Dの範囲（d≦D≦j）左右が接するまで
G33: =U5 -> STEP-0：底面積（d=D） | M33: 杭径：ｄ | N33: 台形上辺 ：a | O33: 台形底辺 ：b | P33: 高さ：H | Q33: 影響円：D | R33: α | S33: β | T33: 角度:δ1 | U33: 高さ:h1 | V33: A1-1 | W33: A1-2 | X33: A1-3 | Z33: 台形面積 | AA33: 面積A1 | AE33: 杭径：ｄ | AF33: 台形上辺 ：a | AG33: 台形底辺 ：b | AH33: 高さ：H | AI33: 影響円：D | AJ33: α | AK33: β | AL33: 角度:δ1 | AM33: 高さ:h1 | AN33: A1-1 | AO33: A1-2 | AP33: A1-3 | AR33: 台形面積 | AS33: 面積A1 | AW33: 杭径：ｄ | AX33: 台形上辺 ：a | AY33: 台形底辺 ：b | AZ33: 高さ：H | BA33: 影響円：D | BB33: α | BC33: β | BD33: 角度:δ1 | BE33: 高さ:h1 | BF33: A1-1 | BG33: A1-2 | BH33: A1-3 | BJ33: 台形面積 | BK33: 面積A1
M34: =N26 -> 1 | N34: =P26 -> 1 | O34: =Q26 -> 2.3 | P34: =P30 -> 2.59 | Q34: =Q30 -> 1.453191277 | R34: =$X$28 -> 0 | S34: =$Y$28 -> 3.141592654 | T34: =ACOS(M34/Q34) -> 0.811872969 | U34: =M34/2*TAN(T34) -> 0.5272013106 | V34: =(S34-T34)*Q34^2/8 -> 0.6149775285 | W34: =M34*U34/2 -> 0.2636006553 | X34: =R34*Q34^2/8 -> 0 | Z34: =V26 -> 0 | AA34: =Z34-(2*V34+W34+2*X34) -> -1.493555712 | AE34: =AF26 -> 1 | AF34: =AH26 -> 1 | AG34: =AI26 -> 2.3 | AH34: =AH30 -> 2.59 | AI34: =AI30 -> 1.453191277 | AJ34: =$X$28 -> 0 | AK34: =$Y$28 -> 3.141592654 | AL34: =ACOS(AE34/AI34) -> 0.811872969 | AM34: =AE34/2*TAN(AL34) -> 0.5272013106 | AN34: =(AK34-AL34)*AI34^2/8 -> 0.6149775285 | AO34: =AE34*AM34/2 -> 0.2636006553 | AP34: =AJ34*AI34^2/8 -> 0 | AR34: =AN26 -> 0 | AS34: =AR34-(2*AN34+AO34+2*AP34) -> -1.493555712 | AW34: =AX26 -> 1 | AX34: =AZ26 -> 1 | AY34: =BA26 -> 2.3 | AZ34: =AZ30 -> 2.59 | BA34: =BA30 -> 1.453191277 | BB34: =$X$28 -> 0 | BC34: =$Y$28 -> 3.141592654 | BD34: =ACOS(AW34/BA34) -> 0.811872969 | BE34: =AW34/2*TAN(BD34) -> 0.5272013106 | BF34: =(BC34-BD34)*BA34^2/8 -> 0.6149775285 | BG34: =AW34*BE34/2 -> 0.2636006553 | BH34: =BB34*BA34^2/8 -> 0 | BJ34: =BF26 -> 0 | BK34: =BJ34-(2*BF34+BG34+2*BH34) -> -1.493555712
M35: =U20 -> STEP-2影響円Dの範囲（b≦D≦j）上下が接するまで | AE35: =AM20 -> STEP-2影響円Dの範囲（j≦D≦b）左右が接するまで | AW35: =BE20 -> STEP-2影響円Dの範囲（j≦D≦k）対角が接するまで
M36: 杭径：ｄ | N36: =P25 -> 台形上辺 ：a | O36: =Q25 -> 台形底辺 ：b | P36: 高さ：H | Q36: 影響円：D | R36: α | S36: β | T36: 角度:δ21 | U36: 角度:δ22 | V36: 角度:δ23 | W36: 角度:δ24 | Y36: 高さ:h21 | Z36: 高さ:h22 | AE36: 杭径：ｄ | AF36: =AH25 -> 台形上辺 ：a | AG36: =AI25 -> 台形底辺 ：b | AH36: 高さ：H | AI36: 影響円：D | AJ36: α | AK36: β | AL36: 角度:δ21 | AM36: 角度:δ22 | AN36: 角度:δ23 | AO36: 角度:δ24 | AQ36: 高さ:h21 | AR36: 高さ:h22 | AW36: 杭径：ｄ | AX36: =AZ25 -> 台形上辺 ：a | AY36: =BA25 -> 台形底辺 ：b | AZ36: 高さ：H | BA36: 影響円：D | BB36: α | BC36: β | BD36: 角度:δ21 | BE36: 角度:δ22 | BF36: 角度:δ23 | BG36: 角度:δ24 | BI36: 高さ:h21 | BJ36: 高さ:h22
M37: =N26 -> 1 | N37: =P26 -> 1 | O37: =Q26 -> 2.3 | P37: =P30 -> 2.59 | Q37: =Q30 -> 1.453191277 | R37: =$X$28 -> 0 | S37: =$Y$28 -> 3.141592654 | T37: =ACOS(M37/Q37) -> 0.811872969 | U37: =ACOS(O37/Q37) ->  | V37: =S37-T37 -> 2.329719685 | W37: =R37-U37 ->  | Y37: =M37/2*TAN(T37) -> 0.5272013106 | Z37: =O37/2*TAN(U37) ->  | AE37: =AF26 -> 1 | AF37: =AH26 -> 1 | AG37: =AI26 -> 2.3 | AH37: =AH30 -> 2.59 | AI37: =AI30 -> 1.453191277 | AJ37: =$X$28 -> 0 | AK37: =$Y$28 -> 3.141592654 | AL37: =ACOS(AE37/AI37) -> 0.811872969 | AM37: =AJ37-AN37 -> -1.107061698 | AN37: =ACOS(AR26/AI37) -> 1.107061698 | AO37: =AK37-AL37-AN37 -> 1.222657987 | AQ37: =AE37/2*TAN(AL37) -> 0.5272013106 | AR37: =AR26/2*TAN(AN37) -> 0.6498586169 | AW37: =AX26 -> 1 | AX37: =AZ26 -> 1 | AY37: =BA26 -> 2.3 | AZ37: =AZ30 -> 2.59 | BA37: =BA30 -> 1.453191277 | BB37: =$X$28 -> 0 | BC37: =$Y$28 -> 3.141592654 | BD37: =ACOS(AW37/BA37) -> 0.811872969 | BE37: =BB37-BF37 -> -1.107061698 | BF37: =ACOS(BJ26/BA37) -> 1.107061698 | BG37: =BC37-BD37-BF37 -> 1.222657987 | BI37: =AW37/2*TAN(BD37) -> 0.5272013106 | BJ37: =BJ26/2*TAN(BF37) -> 0.6498586169
R38: 面積:A21 | S38: 面積:A22 | T38: 面積:A23 | U38: 面積:A24 | Z38: 台形面積 | AA38: 面積A2 | AJ38: 面積:A21 | AK38: 面積:A22 | AL38: 面積:A23 | AM38: 面積:A24 | AR38: 台形面積 | AS38: 面積A2 | BB38: 面積:A21 | BC38: 面積:A22 | BD38: 面積:A23 | BE38: 面積:A24 | BJ38: 台形面積 | BK38: 面積A2
R39: =V37*Q37^2/8 -> 0.6149775285 | S39: =(M37*Y37)/2 -> 0.2636006553 | T39: =W37*Q37^2/8 ->  | U39: =O37*Z37/2 ->  | Z39: =V26 -> 0 | AA39: =Z39-(2*R39+S39+2*T39+U39) ->  | AJ39: =AO37*AI37^2/8 -> 0.3227457758 | AK39: =(AE37*AQ37)/2 -> 0.2636006553 | AL39: =AM37*AI37^2/8 -> -0.2922317527 | AM39: =AR26*AR37/2 -> 0.2112040505 | AR39: =AN26 -> 0 | AS39: =AR39-(2*AJ39+AK39+2*AL39+2*AM39) -> -0.7470368025 | BB39: =BG37*BA37^2/8 -> 0.3227457758 | BC39: =(AW37*BI37)/2 -> 0.2636006553 | BD39: =BE37*BA37^2/8 -> -0.2922317527 | BE39: =BJ26*BJ37/2 -> 0.2112040505 | BJ39: =BF26 -> 0 | BK39: =BJ39-(2*BB39+BC39+2*BD39+2*BE39) -> -0.7470368025
M40: =U21 -> STEP-3影響円Dの範囲（j≦D≦k）対角が接するまで | AE40: =AM21 -> STEP-3影響円Dの範囲（b≦D≦k）対角が接するまで | AW40: =BE21 -> STEP-3影響円Dの範囲（k≦D≦b）左右が接するまで
M41: 杭径：ｄ | N41: =P25 -> 台形上辺 ：a | O41: =Q25 -> 台形底辺 ：b | P41: 高さ：H | Q41: 影響円：D | R41: α | S41: β | T41: 角度:δ31 | U41: 角度:δ32 | V41: 角度:δ33 | W41: 角度:δ34 | X41: 角度:δ35 | Y41: ｈ3-1 | Z41: ｈ3-2 | AA41: ｈ3-3 | AE41: 杭径：ｄ | AF41: =AH25 -> 台形上辺 ：a | AG41: =AI25 -> 台形底辺 ：b | AH41: 高さ：H | AI41: 影響円：D | AJ41: α | AK41: β | AL41: 角度:δ31 | AM41: 角度:δ32 | AN41: 角度:δ33 | AO41: 角度:δ34 | AP41: 角度:δ35 | AQ41: ｈ3-1 | AR41: ｈ3-2 | AS41: ｈ3-3 | AW41: 杭径：ｄ | AX41: =AZ25 -> 台形上辺 ：a | AY41: =BA25 -> 台形底辺 ：b | AZ41: 高さ：H | BA41: 影響円：D | BB41: α | BC41: β | BD41: 角度:δ31 | BE41: 角度:δ32 | BF41: 角度:δ33 | BG41: 角度:δ34 | BH41: 角度:δ35 | BI41: ｈ3-1 | BJ41: ｈ3-2 | BK41: ｈ3-3
M42: =N26 -> 1 | N42: =P26 -> 1 | O42: =O34 -> 2.3 | P42: =Z23 -> 2.59 | Q42: =Q30 -> 1.453191277 | R42: =$X$28 -> 0 | S42: =$Y$28 -> 3.141592654 | T42: =ACOS(M42/Q42) -> 0.811872969 | U42: =ACOS(O42/Q42) ->  | V42: =ACOS(Z26/Q42) -> 1.107061698 | W42: =R42-U42-V42 ->  | X42: =S42-T42-V42 -> 1.222657987 | Y42: =M42/2*TAN(T42) -> 0.5272013106 | Z42: =O42/2*TAN(U42) ->  | AA42: =Z26/2*TAN(V42) -> 0.6498586169 | AE42: =AF26 -> 1 | AF42: =AH26 -> 1 | AG42: =AG34 -> 2.3 | AH42: =AH30 -> 2.59 | AI42: =AI30 -> 1.453191277 | AJ42: =$X$28 -> 0 | AK42: =$Y$28 -> 3.141592654 | AL42: =ACOS(AE42/AI42) -> 0.811872969 | AM42: =ACOS(AG42/AI42) ->  | AN42: =ACOS(AR26/AI42) -> 1.107061698 | AO42: =AJ42-AM42-AN42 ->  | AP42: =AK42-AL42-AN42 -> 1.222657987 | AQ42: =AE42/2*TAN(AL42) -> 0.5272013106 | AR42: =AG42/2*TAN(AM42) ->  | AS42: =AR26/2*TAN(AN42) -> 0.6498586169 | AW42: =AX26 -> 1 | AX42: =AZ26 -> 1 | AY42: =AY34 -> 2.3 | AZ42: =AZ30 -> 2.59 | BA42: =BA30 -> 1.453191277 | BB42: =$X$28 -> 0 | BC42: =$Y$28 -> 3.141592654 | BD42: =ACOS(AW42/BA42) -> 0.811872969 | BE42: =BB42-BF42 -> -1.107061698 | BF42: =ACOS(AW44/BA42) -> 1.107061698 | BG42: =BC42-BD42-BF42 -> 1.222657987 | BI42: =AW42/2*TAN(BD42) -> 0.5272013106 | BJ42: =AW44/2*TAN(BF42) -> 0.6498586169
M43: =Z25 -> 接円距離：j | R43: A3-1 | S43: A3-2 | T43: A3-3 | U43: A3-4 | V43: A3-5 | Z43: 台形面積 | AA43: 面積A3 | AJ43: A3-1 | AK43: A3-2 | AL43: A3-3 | AM43: A3-4 | AN43: A3-5 | AR43: 台形面積 | AS43: 面積A3 | AW43: =BJ25 -> 接円距離：j | BB43: A3-1 | BC43: A3-2 | BD43: A3-3 | BE43: A3-4 | BF43: A3-5 | BJ43: 台形面積 | BK43: 面積A3
A44: =U5 -> STEP-0：底面積（d=D） | M44: =Z26 -> 0.65 | R44: =X42*Q42^2/8 -> 0.3227457758 | S44: =M42*Y42/2 -> 0.2636006553 | T44: =W42*Q42^2/8 ->  | U44: =O42*Z42/2 ->  | V44: =Z26*AA42/2 -> 0.2112040505 | Z44: =V26 -> 0 | AA44: =Z44-(2*R44+S44+2*T44+U44+2*V44) ->  | AJ44: =AP42*AI42^2/8 -> 0.3227457758 | AK44: =AE42*AQ42/2 -> 0.2636006553 | AL44: =AO42*AI42^2/8 ->  | AM44: =AG42*AR42/2 ->  | AN44: =AR26*AS42/2 -> 0.2112040505 | AR44: =AN26 -> 0 | AS44: =AR44-(2*AJ44+AK44+2*AL44+AM44+2*AN44) ->  | AW44: =BJ26 -> 0.65 | BB44: =BG42*BA42^2/8 -> 0.3227457758 | BC44: =AW42*BI42/2 -> 0.2636006553 | BD44: =BE42*BA42^2/8 -> -0.2922317527 | BE44: =AW44*BJ42/2 -> 0.2112040505 | BJ44: =BF26 -> 0 | BK44: =BJ44-(2*BB44+BC44+2*BD44+2*BE44) -> -0.7470368025
M45: STEP-4：(2r)が接するまで | AE45: STEP-4：(2r)が接するまで | AW45: STEP-4：(2r)が接するまで
B46: 項目 | C46: 杭径：ｄ | D46: 杭面積 | E46: 台形上辺 ：a | F46: 台形底辺 ：b | G46: 分担面横：L | H46: 分担面縦：h | I46: 面積：Lh | J46: 改良率 | M46: 杭径：ｄ | N46: =P25 -> 台形上辺 ：a | O46: =Q25 -> 台形底辺 ：b | P46: 高さ：H | Q46: 影響円：D | R46: α | S46: β | T46: 角度:δ41 | U46: 角度:δ42 | V46: 角度:δ43 | W46: 角度:δ44 | X46: 角度:δ45 | Y46: ｈ4-1 | Z46: ｈ4-2 | AA46: ｈ4-3 | AE46: 杭径：ｄ | AF46: =AH30 -> 2.59 | AG46: =AI30 -> 1.453191277 | AH46: 高さ：H | AI46: 影響円：D | AJ46: α | AK46: β | AL46: 角度:δ41 | AM46: 角度:δ42 | AN46: 角度:δ43 | AO46: 角度:δ44 | AP46: 角度:δ45 | AQ46: ｈ4-1 | AR46: ｈ4-2 | AS46: ｈ4-3 | AW46: 杭径：ｄ | AX46: =AZ25 -> 台形上辺 ：a | AY46: =BA25 -> 台形底辺 ：b | AZ46: 高さ：H | BA46: 影響円：D | BB46: α | BC46: β | BD46: 角度:δ41 | BE46: 角度:δ42 | BF46: 角度:δ43 | BG46: 角度:δ44 | BH46: 角度:δ45 | BI46: ｈ4-1 | BJ46: ｈ4-2 | BK46: ｈ4-3
B47: 数値 | C47: =F3 -> 1 | D47: =PI()*C47^2/4 -> 0.7853981634 | E47: =F4 -> 1 | F47: =F5 -> 2.3 | G47: =F6 ->  | H47: =F7 -> 0 | I47: =G47*H47 ->  | J47: =(D47*2/I47) ->  | M47: =M42 -> 1 | N47: =N42 -> 1 | O47: =O42 -> 2.3 | P47: =Z23 -> 2.59 | Q47: =Q30 -> 1.453191277 | R47: =$X$28 -> 0 | S47: =$Y$28 -> 3.141592654 | T47: =ACOS(M47/Q47) -> 0.811872969 | U47: =ACOS(O47/Q47) ->  | V47: =ACOS(Z26/Q47) -> 1.107061698 | W47: =R47-U47-V47 ->  | X47: =S47-T47-V47 -> 1.222657987 | Y47: =M47/2*TAN(T47) -> 0.5272013106 | Z47: =O47/2*TAN(U47) ->  | AA47: =Z26/2*TAN(V47) -> 0.6498586169 | AE47: =AE42 -> 1 | AF47: =AF42 -> 1 | AG47: =AG42 -> 2.3 | AH47: =AR23 -> 0 | AI47: =AI30 -> 1.453191277 | AJ47: =$X$28 -> 0 | AK47: =$Y$28 -> 3.141592654 | AL47: =ACOS(AE47/AI47) -> 0.811872969 | AM47: =ACOS(AG47/AI47) ->  | AN47: =ACOS(AR26/AI47) -> 1.107061698 | AO47: =AJ47-AM47-AN47 ->  | AP47: =AK47-AL47-AN47 -> 1.222657987 | AQ47: =AE47/2*TAN(AL47) -> 0.5272013106 | AR47: =AG47/2*TAN(AM47) ->  | AS47: =AR26/2*TAN(AN47) -> 0.6498586169 | AW47: =AW42 -> 1 | AX47: =AX42 -> 1 | AY47: =AY42 -> 2.3 | AZ47: =AZ30 -> 2.59 | BA47: =BA30 -> 1.453191277 | BB47: =$X$28 -> 0 | BC47: =$Y$28 -> 3.141592654 | BD47: =ACOS(AW47/BA47) -> 0.811872969 | BE47: =ACOS(AY47/BA47) ->  | BF47: =ACOS(BJ26/BA47) -> 1.107061698 | BG47: =BB47-BE47-BF47 ->  | BH47: =BC47-BD47-BF47 -> 1.222657987 | BI47: =AW47/2*TAN(BD47) -> 0.5272013106 | BJ47: =AY47/2*TAN(BE47) ->  | BK47: =BJ26/2*TAN(BF47) -> 0.6498586169
R48: A4-1 | S48: A4-2 | T48: A4-3 | U48: A4-4 | V48: A4-5 | Z48: 台形面積 | AA48: 面積A4 | AJ48: A4-1 | AK48: A4-2 | AL48: A4-3 | AM48: A4-4 | AN48: A4-5 | AR48: 台形面積 | AS48: 面積A4 | BB48: A4-1 | BC48: A4-2 | BD48: A4-3 | BE48: A4-4 | BF48: A4-5 | BJ48: 台形面積 | BK48: 面積A4
B49: =A44 -> STEP-0：底面積（d=D） | R49: =X47*Q47^2/8 -> 0.3227457758 | S49: =M47*Y47/2 -> 0.2636006553 | T49: =W47*Q47^2/8 ->  | U49: =O47*Z47/2 ->  | V49: =Z26*AA47/2 -> 0.2112040505 | Z49: =V26 -> 0 | AA49: =Z49-(2*R49+S49+2*T49+U49+2*V49) ->  | AJ49: =AP47*AI47^2/8 -> 0.3227457758 | AK49: =AE47*AQ47/2 -> 0.2636006553 | AL49: =AO47*AI47^2/8 ->  | AM49: =AG47*AR47/2 ->  | AN49: =AR26*AS47/2 -> 0.2112040505 | AR49: =AN26 -> 0 | AS49: =AR49-(2*AJ49+AK49+2*AL49+AM49+2*AN49) ->  | BB49: =BH47*BA47^2/8 -> 0.3227457758 | BC49: =AW47*BI47/2 -> 0.2636006553 | BD49: =BG47*BA47^2/8 ->  | BE49: =AY47*BJ47/2 ->  | BF49: =BJ26*BK47/2 -> 0.2112040505 | BJ49: =BF26 -> 0 | BK49: =BJ49-(2*BB49+BC49+2*BD49+BE49+2*BF49) -> 
B65: 塑性角：θ | C65: ラジアン | D65: 高さ：H | E65: 影響円：D | F65: （d+b）*h/2 | G65: =D46 -> 杭面積 | H65: 面積A0
B66: =F13 -> 85 | C66: =RADIANS(B66) -> 1.483529864 | D66: =E17 -> 1.59375 | E66: =$C$47+2*D66/TAN($C$66) -> 1.278870115 | F66: =(E47+F47)/2*H47 -> 0 | G66: =D47 -> 0.7853981634 | H66: =F66-D47 -> -0.7853981634
A87: =U6 -> 
B89: 杭径：ｄ | C89: 長辺：a | D89: =F46 -> 台形底辺 ：b | E89: 高さ：H | F89: 影響円：D | G89: 角度:δ1 | H89: α | I89: β | J89: 高さ:h1
B90: =C47 -> 1 | C90: =E47 -> 1 | D90: =F47 -> 2.3 | E90: =E18 ->  | F90: =$C$47+2*E90/TAN($C$66) ->  | G90: =ACOS(B90/F90) ->  | H90: =$X$28 -> 0 | I90: =$Y$28 -> 3.141592654 | J90: =B90/2*TAN(G90) -> 
B92: =A87 -> 
B108: A1-1 | C108: A1-2 | D108: A1-3 | E108: 台形面積A00 | F108: 面積A1
B109: =(I90-G90)*F90^2/8 ->  | C109: =B90*J90/2 ->  | D109: =H90*F90^2/8 ->  | E109: =$V$26 -> 0 | F109: =E109-(2*B109+C109+2*D109) -> 
A130: =U7 -> 
B132: 杭径：ｄ | C132: =E46 -> 台形上辺 ：a | D132: =D89 -> 台形底辺 ：b | E132: 高さ：H | F132: 影響円：D | G132: α | H132: 角度:δ21 | I132: 角度:δ23 | J132: 高さ:h21
B133: =F3 -> 1 | C133: =E47 -> 1 | D133: =D90 -> 2.3 | E133: =E19 ->  | F133: =$C$47+2*E133/TAN($C$66) ->  | G133: =$X$28 -> 0 | H133: =ACOS(B133/F133) ->  | I133: =ACOS(B135/F133) ->  | J133: =B133/2*TAN(H133) -> 
B134: 接円距離：j | C134: 対角距離：k | G134: β | H134: 角度:δ22 | I134: 角度:δ24 | J134: 高さ:h22
B135: =Z26 -> 0.65 | C135: =AA26 -> 1.65 | G135: =$Y$28 -> 3.141592654 | H135: =G133-I133 ->  | I135: =G135-H133-I133 ->  | J135: =B135/2*TAN(I133) -> 
B136: =A130 -> 
B151: 面積:A21 | C151: 面積:A22 | D151: 面積:A23 | E151: 面積:A24 | F151: 台形面積A00 | G151: 面積A2
B152: =I135*F133^2/8 ->  | C152: =(B133*J133)/2 ->  | D152: =H135*F133^2/8 ->  | E152: =B135*J135/2 ->  | F152: =$V$26 -> 0 | G152: =F152-(2*B152+C152+2*D152+2*E152) -> 
A173: =U8 -> 
B175: 杭径：ｄ | C175: 長辺：a | D175: 短辺：ｂ | E175: 高さ：H | F175: 影響円：D | G175: α | H175: 角度:δ21 | I175: 角度:δ23 | J175: 高さ:h21
B176: =F3 -> 1 | C176: =P26 -> 1 | D176: =Q26 -> 2.3 | E176: =E20 ->  | F176: =$C$47+2*E176/TAN($C$66) ->  | G176: =$X$28 -> 0 | H176: =ACOS(B176/F176) ->  | I176: =ACOS(B178/F176) ->  | J176: =B176/2*TAN(H176) -> 
B177: 接円距離：j | C177: 対角距離：k | G177: β | H177: 角度:δ22 | I177: 角度:δ24 | J177: 高さ:h22
B178: =Z26 -> 0.65 | C178: =AA26 -> 1.65 | G178: =$Y$28 -> 3.141592654 | H178: =G176-I176 ->  | I178: =G178-H176-I176 ->  | J178: =B178/2*TAN(I176) -> 
B180: =A173 -> 
B194: A3-1 | C194: A3-2 | D194: A3-3 | E194: A3-4 | F194: A3-5 | G194: 台形面積A00 | H194: 面積A3
B195: =I178*F176^2/8 ->  | C195: =(B176*J176)/2 ->  | D195: =H178*F176^2/8 ->  | E195: =B178*J178/2 ->  | G195: =$V$26 -> 0 | H195: =G195-(2*B195+C195+2*D195+2*E195) -> 
K215: ＊
A216: =U9 ->  | O216: x | P216: y | Q216: x | R216: y
N217: 座標1 | O217: 0 | P217: 0 | Q217: 0 | R217: 0
B218: =E46 -> 台形上辺 ：a | C218: =F46 -> 台形底辺 ：b | D218: 高さ：H | E218: 影響円：D | F218: α | G218: β | H218: 角度:δ41 | I218: 角度:δ42 | J218: 角度:δ43 | N218: 座標2 | O218: (b-d)/2 | P218: -ｈ | Q218: =(C219-B221)/2 -> 0.65 | R218: =-H47 -> 0
B219: =C176 -> 1 | C219: =D176 -> 2.3 | D219: =E21 ->  | E219: =$C$47+2*D219/TAN($C$66) ->  | F219: =$X$28 -> 0 | G219: =$Y$28 -> 3.141592654 | H219: =ACOS(B221/E219) ->  | I219: =ACOS(C219/E219) ->  | J219: =ACOS(C221/E219) ->  | N219: 座標3 | O219: b | P219: 0 | Q219: =C219 -> 2.3 | R219: 0
B220: 杭径：ｄ | C220: 対角距離：j | D220: 対角距離：k | E220: 2r | F220: 角度:δ44 | G220: 角度:δ45 | H220: ｈ4-1 | I220: ｈ4-2 | J220: ｈ4-3
B221: =F3 -> 1 | C221: =Z26 -> 0.65 | D221: =AA26 -> 1.65 | E221: =2*O227 ->  | F221: =F219-I219-J219 ->  | G221: =G219-H219-J219 ->  | H221: =B221/2*TAN(H219) ->  | I221: =C219/2*TAN(I219) ->  | J221: =C221/2*TAN(J219) ->  | N221: 分子 | O221: =(R217-R218)*(Q219^2-Q217^2+R219^2-R217^2) -> 0 | P221: =-1*(R219-R217)*(Q218^2-Q217^2+R218^2-R217^2) -> 0 | Q221: =O221+P221 -> 0 | R221: 中心xp
N222: 分母 | O222: =2*(Q217-Q218)*(R217-R219) -> 0 | P222: =-2*(Q217-Q219)*(R217-R218) -> 0 | Q222: =O222+P222 -> 0 | R222: =Q221/Q222 -> 
B223: =A216 -> 
N224: 分子 | O224: =(Q217-Q219)*(Q218^2-Q217^2+R218^2-R217^2) -> -0.97175 | P224: =-(Q217-Q218)*(Q219^2-Q217^2+R219^2-R217^2) -> 3.4385 | Q224: =O224+P224 -> 2.46675 | R224: 中心yp
N225: 分母 | O225: =2*(Q217-Q218)*(R217-R219) -> 0 | P225: =-2*(Q217-Q219)*(R217-R218) -> 0 | Q225: =O225+P225 -> 0 | R225: =Q224/Q225 -> 
N227: r= | O227: =SQRT(R222^2+R225^2) -> 
B237: A4-1 | C237: A4-2 | D237: A4-3 | E237: A4-4 | F237: A4-5 | G237: 台形面積A00 | H237: 面積A4
B238: =G221*E219^2/8 ->  | C238: =B221*H221/2 ->  | D238: =F221*E219^2/8 ->  | E238: =C219*I221/2 ->  | F238: =C221*J221/2 ->  | G238: =$V$26 -> 0 | H238: =G238-(2*B238+C238+2*D238+E238+2*F238) -> 
K258: ＊

Sheet 画像
A11: ⇧セルの結合を外さない！！！！！
B12: セルの範囲の中の画像を張り替えると図を差し替えられる。
